{"text_format":"1","workbook":"xlsx","n_sheets":6,"sheets":["表紙","自己採点シート","学習自己点検シート ","単位修得状況確認表（共通教育科目，外国人留学生）","単位修得状況確認表（専門教育科目）","累積グラフ"],"not_rendered":{"charts":10,"images":3,"macros":1,"external_links":0,"defined_names":18,"comments":0,"pivot_tables":0},"unopened":[],"bounds":{"document_bytes":16777216,"sheet_cells":100000,"rows_first":2000,"rows_last":500,"rows_between":2000,"halvings":0,"cell_chars":16384,"cell_head_chars":4096},"cells_cut":0,"cells_raw":0,"read":"whole","date_system":"1900"}

{"sheet":"表紙","index":0,"n_rows":34,"n_cols":2,"rows_kept":34,"cut":false,"hidden":false,"merged":[]}
[]
[]
[]
[]
[]
[]
[]
[]
[]
[]
[]
[null,"鹿児島大学工学部ポートフォリオ"]
[]
[]
[]
[]
[]
[]
[]
[]
[]
[]
[]
[]
[]
[]
[]
[]
[]
[]
[null,"入学年度：平成31年度"]
[null,"学科：建築学科"]
[null,"氏名："]
[null,"学籍番号："]

{"sheet":"自己採点シート","index":1,"n_rows":22,"n_cols":21,"rows_kept":22,"cut":false,"hidden":false,"merged":[[12,2,12,5],[3,10,3,11],[3,19,3,20],[9,2,9,5],[10,2,10,5],[11,2,11,5],[19,2,19,5],[20,2,20,5],[21,2,21,5],[13,2,13,5],[14,2,14,5],[15,2,15,5],[16,2,16,5],[17,2,17,5],[18,2,18,5]]}
[]
[null,"自己採点シート"]
[]
[null,null,null,null,null,null,null,null,null,"学籍番号",null,null,"氏名"]
[]
[null,"■学生のみなさんへ"]
[null,null,"今期受講した科目に関して、以下の項目に対して自己採点をしてください。(１０点満点)"]
[]
[]
[null,null,"項目",null,null,null,"2019年度\n前期","2019年度\n後期","2020年度\n前期","2020年度\n後期","2021年度\n前期","2021年度\n後期","2022年度\n前期","2022年度\n後期","2023年度\n前期","2023年度\n後期","2024年度\n前期","2024年度\n後期","2025年度\n前期","2025年度\n後期","卒業時"]
[null,1,"工学に関しての基礎知識\n（物理・化学・数学・情報など）"]
[null,2,"各工学分野での基礎知識\n（専門科目など）"]
[null,3,"人前での発表能力"]
[null,4,"人と話し合ったり議論する能力"]
[null,5,"チームの一員として取り組める（チームワーク）能力"]
[null,6,"英語、その他外国語による表現力"]
[null,7,"読書、講習会への参加、英会話や情報処理学習など大学以外での学習による自己啓発・生涯学習能力"]
[null,8,"社会性や国際感覚が身についているか。"]
[null,9,"倫理観、責任感が身についているか。"]
[null,10]
[null,11]
[null,12]

{"sheet":"学習自己点検シート ","index":2,"n_rows":68,"n_cols":13,"rows_kept":68,"cut":false,"hidden":false,"merged":[[4,8,4,9],[4,11,4,12],[7,2,7,12]]}
[]
[null,null,null,null,null,null,null,null,null,null,null,"年度","期"]
[null,"学習自己点検シート"]
[]
[null,null,null,null,null,null,null,"学籍番号",null,null,"氏名"]
[]
[null,"■学生のみなさんへ"]
[null,null,"学生生活全般に関して自己点検をお願いしています。今期受講した科目に関して、以下の質問項目に答えてください。面談時、指導教員（アドバイザー）の先生方から回答に対する具体的なアドバイスを受けてください。"]
[]
[]
[null,"■回答項目"]
[]
[null,1,"今期の目標は達成できましたか。"]
[]
[]
[]
[]
[null,2,"講義への取り組みは積極的でしたか。また、積極的に取り組むことができなかった講義は具体的に何ですか。"]
[]
[]
[]
[]
[null,3,"講義毎に勉強方法がつかめていますか。"]
[]
[]
[]
[]
[null,4,"それぞれの講義の理解度は自分の目標に達していますか。理解度が足りないと感じている講義は何ですか。"]
[]
[]
[]
[]
[null,5,"平日（試験勉強以外）１日当たりの勉強時間（平均）はどのくらいですか。勉強時間が足りないと感じている講義は何ですか。"]
[]
[]
[]
[]
[null,6,"アルバイトと勉強は両立できましたか。"]
[]
[]
[]
[]
[null,7,"サークル活動と勉強は両立できましたか。"]
[]
[]
[]
[]
[null,8,"卒業後の進路についてどのように考えていますか。"]
[]
[]
[]
[]
[null,9,"その他、アドバイスが必要なことはありますか。"]
[]
[]
[]
[]
[null,10]
[]
[]
[]
[]
[null,11]
[]
[]
[]
[]
[null,12]

{"sheet":"単位修得状況確認表（共通教育科目，外国人留学生）","index":3,"n_rows":37,"n_cols":49,"rows_kept":37,"cut":false,"hidden":false,"merged":[[29,0,29,6],[29,7,29,8],[29,9,29,10],[29,11,29,12],[29,13,29,14],[29,15,29,16],[29,17,29,18],[29,19,29,20],[29,21,29,22],[29,23,29,24],[29,35,29,36],[29,37,29,38],[29,25,29,26],[29,27,29,28],[29,29,29,30],[29,31,29,32],[29,33,29,34],[3,27,3,30],[3,31,3,34],[3,35,3,38],[6,0,16,0],[1,0,1,41],[2,0,5,6],[2,7,2,38],[2,39,5,39],[2,40,5,40],[2,41,5,41],[4,7,4,8],[4,9,4,10],[4,11,4,12],[4,13,4,14],[4,37,4,38],[4,15,4,16],[3,7,3,10],[3,11,3,14],[3,15,3,18],[3,19,3,22],[3,23,3,26],[4,35,4,36],[4,25,4,26],[4,27,4,28],[4,29,4,30],[4,31,4,32],[4,33,4,34],[14,1,15,3],[4,17,4,18],[4,19,4,20],[4,21,4,22],[4,23,4,24],[6,1,11,3],[9,4,10,4],[12,1,13,3],[17,0,23,0],[17,1,20,3],[18,4,20,4],[21,1,22,3],[21,40,22,40],[24,0,24,6],[25,1,25,10],[26,39,26,40],[27,37,27,38],[27,15,27,16],[27,17,27,18],[27,19,27,20],[27,21,27,22],[27,23,27,24],[27,25,27,26],[27,27,27,28],[27,29,27,30],[27,31,27,32],[27,33,27,34],[27,35,27,36],[27,0,27,6],[27,7,27,8],[27,9,27,10],[27,11,27,12],[27,13,27,14],[28,27,28,28],[28,15,28,16],[28,17,28,18],[28,19,28,20],[28,21,28,22],[28,23,28,24],[28,25,28,26],[28,0,28,6],[28,7,28,8],[28,9,28,10],[28,11,28,12],[28,13,28,14],[28,29,28,30],[28,31,28,32],[28,33,28,34],[28,35,28,36],[28,37,28,38]]}
[null,null,null,null,null,null,null,null,null,null,null,null,null,null,null,null,null,null,null,null,null,null,null,null,null,null,null,null,null,null,null,null,null,null,null,null,null,null,null,null,null,null,null,null,null,null,null,null,"A"]
["単位修得状況確認表（共通教育科目：外国人留学生）",null,null,null,null,null,null,null,null,null,null,null,null,null,null,null,null,null,null,null,null,null,null,null,null,null,null,null,null,null,null,null,null,null,null,null,null,null,null,null,null,null,null,null,null,null,null,null,"B"]
["　",null,null,null,null,null,null,"取得単位数およびGP",null,null,null,null,null,null,null,null,null,null,null,null,null,null,null,null,null,null,null,null,null,null,null,null,null,null,null,null,null,null,null,"取得単位数","要修得\n単位数","累積GP",null,null,"当該期修得単位の入力要領（共通教育科目）",null,null,null,"C"]
[null,null,null,null,null,null,null,"　年次",null,null,null,"　年次",null,null,null,"　年次",null,null,null,"　年次",null,null,null,"　年次",null,null,null,"　年次",null,null,null,"　年次",null,null,null,"　年次",null,null,null,null,null,null,null,null,"１．黄色枠に各科目(英語及び日本語の場合は修得",null,null,null,"D"]
[null,null,null,null,null,null,null,"１期",null,"２期",null,"３期",null,"４期",null,"５期",null,"６期",null,"７期",null,"８期",null,"９期",null,"10期",null,"11期",null,"12期",null,"13期",null,"14期",null,"15期",null,"16期",null,null,null,null,null,null,"　　した合計単位数)の修得単位数を記入する。",null,null,null,"F"]
[null,null,null,null,null,null,null,"単位","合計GP","単位","合計GP","単位","合計GP","単位","合計GP","単位","合計GP","単位","合計GP","単位","合計GP","単位","合計GP","単位","合計GP","単位","合計GP","単位","合計GP","単位","合計GP","単位","合計GP","単位","合計GP","単位","合計GP","単位","合計GP",null,null,null,null,null,"２．オレンジ枠に修得した必修科目・選択必修",null,null,null,"P"]
["必修科目","初年次教育科目",null,null,"初年次セミナーⅠ",null,null,null,null,null,null,null,null,null,null,null,null,null,null,null,null,null,null,null,null,null,null,null,null,null,null,null,null,null,null,null,null,null,null,{"$f":"SUM(H7,J7,L7,N7,P7,R7,T7,V7,X7,Z7,AB7,AD7,AF7,AH7,AJ7,AL7)","v":0},2,null,null,null,"　　科目それぞれの合計単位数を記入する。"]
[null,null,null,null,"初年次セミナーⅡ",null,null,null,null,null,null,null,null,null,null,null,null,null,null,null,null,null,null,null,null,null,null,null,null,null,null,null,null,null,null,null,null,null,null,{"$f":"SUM(H8,J8,L8,N8,P8,R8,T8,V8,X8,Z8,AB8,AD8,AF8,AH8,AJ8,AL8)","v":0},"－",null,null,null,"３．灰色枠に受講科目の合計GP（単位数×GP）"]
[null,null,null,null,"大学と地域",null,null,null,null,null,null,null,null,null,null,null,null,null,null,null,null,null,null,null,null,null,null,null,null,null,null,null,null,null,null,null,null,null,null,0,2,null,null,null,"　　を計算し、その値を入力する。"]
[null,null,null,null,"体育・健康","理論",null,null,null,null,null,null,null,null,null,null,null,null,null,null,null,null,null,null,null,null,null,null,null,null,null,null,null,null,null,null,null,null,null,0,1,null,null,null,"　（評価とGPの関係：A=4,B=3,C=2,D=1,F=0,Pは"]
[null,null,null,null,null,"実習",null,null,null,null,null,null,null,null,null,null,null,null,null,null,null,null,null,null,null,null,null,null,null,null,null,null,null,null,null,null,null,null,null,0,1,null,null,null,"　　GPの該当外なので合計GP欄は空欄とする。）"]
[null,null,null,null,"情報活用",null,null,null,null,null,null,null,null,null,null,null,null,null,null,null,null,null,null,null,null,null,null,null,null,null,null,null,null,null,null,null,null,null,null,0,2,null,null,null,"４．取得単位数を要修得単位数と比較して、"]
[null,"ｸﾞﾛｰﾊﾞﾙ教育科目",null,null,"英語",null,null,null,null,null,null,null,null,null,null,null,null,null,null,null,null,null,null,null,null,null,null,null,null,null,null,null,null,null,null,null,null,null,null,0,6,null,null,null,"　　単位取得状況を把握する。"]
[null,null,null,null,"異文化理解",null,null,null,null,null,null,null,null,null,null,null,null,null,null,null,null,null,null,null,null,null,null,null,null,null,null,null,null,null,null,null,null,null,null,0,2]
[null,"日本語・日本事情科目",null,null,"日本語",null,null,null,null,null,null,null,null,null,null,null,null,null,null,null,null,null,null,null,null,null,null,null,null,null,null,null,null,null,null,null,null,null,null,0,4,null,null,null,"※期をまたがって開講される科目は、成績の出"]
[null,null,null,null,"日本事情",null,null,null,null,null,null,null,null,null,null,null,null,null,null,null,null,null,null,null,null,null,null,null,null,null,null,null,null,null,null,null,null,null,null,0,"(4)",null,null,null,"　された期に記入する。例えば通年の場合、後"]
[null,"必修科目　計",null,null,null,null,null,null,{"$f":"SUM(I7:I16)","v":0},null,{"$f":"SUM(K7:K16)","v":0},null,{"$f":"SUM(M7:M16)","v":0},null,{"$f":"SUM(O7:O16)","v":0},null,{"$f":"SUM(Q7:Q16)","v":0},null,{"$f":"SUM(S7:S16)","v":0},null,{"$f":"SUM(U7:U16)","v":0},null,{"$f":"SUM(W7:W16)","v":0},null,{"$f":"SUM(Y7:Y16)","v":0},null,{"$f":"SUM(AA7:AA16)","v":0},null,{"$f":"SUM(AC7:AC16)","v":0},null,{"$f":"SUM(AE7:AE16)","v":0},null,{"$f":"SUM(AG7:AG16)","v":0},null,{"$f":"SUM(AI7:AI16)","v":0},null,{"$f":"SUM(AK7:AK16)","v":0},null,{"$f":"SUM(AM7:AM16)","v":0},0,20,{"$f":"SUM(I17,K17,M17,O17,Q17,S17,U17,W17,Y17,AA17,AC17,AE17,AG17,AI17,AK17,AM17)","v":0},null,null,"　期に記入する。"]
["選択必修科目","教養教育科目",null,null,"人文・社会科学分野","選択科目",null,null,null,null,null,null,null,null,null,null,null,null,null,null,null,null,null,null,null,null,null,null,null,null,null,null,null,null,null,null,null,null,null,0,4,null,null,null,"※本表最下部の表の入力方法について"]
[null,null,null,null,"自然科学分野","実験科目",null,null,null,null,null,null,null,null,null,null,null,null,null,null,null,null,null,null,null,null,null,null,null,null,null,null,null,null,null,null,null,null,null,0,1,null,null,null,"　・P評価の単位数は、当該期①の欄に、"]
[null,null,null,null,null,"選択科目",null,null,null,null,null,null,null,null,null,null,null,null,null,null,null,null,null,null,null,null,null,null,null,null,null,null,null,null,null,null,null,null,null,0,2,null,null,null,"　・F評価の単位数は、当該期②の欄に、"]
[null,null,null,null,null,"基礎教育入門科目",null,null,null,null,null,null,null,null,null,null,null,null,null,null,null,null,null,null,null,null,null,null,null,null,null,null,null,null,null,null,null,null,null,0,2,null,null,null,"　・評価F科目の再履修での修得単位数は当該"]
[null,"教養活用科目",null,null,"統合Ⅰ（課題発見）",null,null,null,null,null,null,null,null,null,null,null,null,null,null,null,null,null,null,null,null,null,null,null,null,null,null,null,null,null,null,null,null,null,null,0,4,null,null,null,"　　期③の欄に入力する。なお、②には再履修"]
[null,null,null,null,"統合Ⅱ（課題解決）",null,null,null,null,null,null,null,null,null,null,null,null,null,null,null,null,null,null,null,null,null,null,null,null,null,null,null,null,null,null,null,null,null,null,0,null,null,null,null,"　　の科目は含まない。"]
[null,"選択必修科目　計",null,null,null,null,null,null,{"$f":"SUM(I18:I23)","v":0},null,{"$f":"SUM(K18:K23)","v":0},null,{"$f":"SUM(M18:M23)","v":0},null,{"$f":"SUM(O18:O23)","v":0},null,{"$f":"SUM(Q18:Q23)","v":0},null,{"$f":"SUM(S18:S23)","v":0},null,{"$f":"SUM(U18:U23)","v":0},null,{"$f":"SUM(W18:W23)","v":0},null,{"$f":"SUM(Y18:Y23)","v":0},null,{"$f":"SUM(AA18:AA23)","v":0},null,{"$f":"SUM(AC18:AC23)","v":0},null,{"$f":"SUM(AE18:AE23)","v":0},null,{"$f":"SUM(AG18:AG23)","v":0},null,{"$f":"SUM(AI18:AI23)","v":0},null,{"$f":"SUM(AK18:AK23)","v":0},null,{"$f":"SUM(AM18:AM23)","v":0},0,13,{"$f":"SUM(I24,K24,M24,O24,Q24,S24,U24,W24,Y24,AA24,AC24,AE24,AG24,AI24,AK24,AM24)","v":0},null,null,"※評価Fの科目を再履修して単位を修得した場合"]
["全科目合計",null,null,null,null,null,null,{"$f":"H17+H24","v":0},{"$f":"I17+I24","v":0},{"$f":"J17+J24","v":0},0,0,0,0,0,0,0,0,0,0,0,0,0,0,0,0,0,0,0,0,0,0,0,0,0,0,0,0,0,0,33,{"$f":"SUM(I25,K25,M25,O25,Q25,S25,U25,W25,Y25,AA25,AC25,AE25,AG25,AI25,AK25,AM25)","v":0},null,null,"　の入力方法について"]
["※","「期を増やす」欄により学年を４年間増やすことが可。",null,null,null,null,null,null,null,null,null,null,null,null,null,null,null,null,null,null,null,null,null,null,null,null,null,null,null,null,null,null,null,null,null,null,null,null,null,null,null,null,null,null,"　上記1～3の手順で入力する。"]
[null,null,null,null,null,null,null,null,null,null,null,null,null,null,null,null,null,null,null,null,null,null,null,null,null,null,null,null,null,null,null,null,null,null,null,null,null,null,null,null,null,null,null,null,"※既修得単位（D以上）の科目を再履修して単位を"]
["①【共通教育科目】評価Pの単位数",null,null,null,null,null,null,null,null,null,null,null,null,null,null,null,null,null,null,null,null,null,null,null,null,null,null,null,null,null,null,null,null,null,null,null,null,null,null,{"$f":"SUM(H28:AM28)","v":0},null,null,null,null,"　修得した場合の入力方法について"]
["②【共通教育科目】不合格（評価F）の単位数",null,null,null,null,null,null,null,null,null,null,null,null,null,null,null,null,null,null,null,null,null,null,null,null,null,null,null,null,null,null,null,null,null,null,null,null,null,null,{"$f":"SUM(H29:AM29)","v":0},null,null,null,null,"　今期の分を上記1～3の手順で入力した後、"]
["③【共通教育科目】評価F科目の再履修での修得単位数",null,null,null,null,null,null,null,null,null,null,null,null,null,null,null,null,null,null,null,null,null,null,null,null,null,null,null,null,null,null,null,null,null,null,null,null,null,null,{"$f":"SUM(H30:AM30)","v":0},null,null,null,null,"  過去の評価（黄色枠）と合計GP（灰色枠）"]
[null,null,null,null,null,null,null,null,null,null,null,null,null,null,null,null,null,null,null,null,null,null,null,null,null,null,null,null,null,null,null,null,null,null,null,null,null,null,null,null,null,null,null,null,"　を削除し、過去のオレンジ枠の合計修得単位数"]
[null,null,null,null,null,null,null,null,null,null,null,null,null,null,null,null,null,null,null,null,null,null,null,null,null,null,null,null,null,null,null,null,null,null,null,null,null,null,null,null,null,null,null,null,"　から今期再履修で修得した単位数を引いた値を"]
[null,null,null,null,null,null,null,null,null,null,null,null,null,null,null,null,null,null,null,null,null,null,null,null,null,null,null,null,null,null,null,null,null,null,null,null,null,null,null,null,null,null,null,null,"　過去のオレンジ枠の合計修得単位数に再入力する。"]
[]
[null,null,null,null,null,null,null,null,null,null,null,null,null,null,null,null,null,null,null,null,null,null,null,null,null,null,null,null,null,null,null,null,null,null,null,null,null,null,null,null,null,null,null,null,"（補足説明）"]
[null,null,null,null,null,null,null,null,null,null,null,null,null,null,null,null,null,null,null,null,null,null,null,null,null,null,null,null,null,null,null,null,null,null,null,null,null,null,null,null,null,null,null,null,"※留年した場合は「期を増やす」欄で列を増"]
[null,null,null,null,null,null,null,null,null,null,null,null,null,null,null,null,null,null,null,null,null,null,null,null,null,null,null,null,null,null,null,null,null,null,null,null,null,null,null,null,null,null,null,null,"　やす。"]

{"sheet":"単位修得状況確認表（専門教育科目）","index":4,"n_rows":91,"n_cols":50,"rows_kept":91,"cut":false,"hidden":false,"merged":[[90,22,90,23],[90,24,90,25],[90,26,90,27],[90,28,90,29],[90,30,90,31],[90,32,90,33],[90,34,90,35],[90,36,90,37],[88,36,88,37],[89,32,89,33],[89,34,89,35],[89,36,89,37],[88,22,88,23],[88,24,88,25],[88,26,88,27],[88,28,88,29],[88,30,88,31],[89,28,89,29],[89,30,89,31],[88,32,88,33],[89,26,89,27],[89,24,89,25],[90,0,90,5],[90,6,90,7],[90,8,90,9],[90,10,90,11],[90,12,90,13],[90,14,90,15],[90,16,90,17],[90,18,90,19],[90,20,90,21],[1,0,1,40],[2,38,5,38],[3,6,3,9],[3,10,3,13],[3,14,3,17],[4,8,4,9],[4,10,4,11],[4,12,4,13],[2,40,5,40],[3,18,3,21],[4,24,4,25],[2,0,2,1],[4,6,4,7],[3,22,3,25],[2,6,2,37],[3,26,3,29],[3,30,3,33],[3,34,3,37],[4,22,4,23],[4,26,4,27],[4,28,4,29],[4,14,4,15],[4,16,4,17],[4,18,4,19],[66,49,68,49],[75,45,81,45],[6,45,44,45],[47,45,50,45],[51,45,55,45],[56,45,69,45],[72,45,74,45],[4,30,4,31],[4,32,4,33],[4,34,4,35],[4,36,4,37],[2,39,5,39],[72,1,74,1],[75,1,81,1],[82,0,82,5],[72,0,81,0],[86,1,86,10],[84,0,84,5],[85,0,85,5],[56,1,69,1],[47,0,69,0],[5,0,5,1],[6,0,11,0],[6,1,11,1],[12,0,12,5],[69,2,69,5],[45,0,45,5],[47,1,50,1],[50,2,50,5],[14,0,44,0],[55,2,55,5],[51,1,55,1],[4,20,4,21],[89,20,89,21],[86,38,86,39],[70,0,70,5],[74,43,76,43],[89,0,89,5],[89,6,89,7],[89,8,89,9],[89,10,89,11],[89,12,89,13],[89,14,89,15],[88,34,88,35],[88,20,88,21],[88,12,88,13],[88,14,88,15],[88,16,88,17],[89,16,89,17],[89,18,89,19],[88,0,88,5],[88,18,88,19],[88,6,88,7],[88,8,88,9],[88,10,88,11],[89,22,89,23]]}
[null,null,null,null,null,null,null,null,null,null,null,null,null,null,null,null,null,null,null,null,null,null,null,null,null,null,null,null,null,null,null,null,null,null,null,null,null,null,null,null,null,null,null,null,null,null,"A"]
["単位修得状況確認表（専門教育科目）",null,null,null,null,null,null,null,null,null,null,null,null,null,null,null,null,null,null,null,null,null,null,null,null,null,null,null,null,null,null,null,null,null,null,null,null,null,null,null,null,null,null,"受講科目の単位入力要領（専門教育科目）",null,null,"B"]
["区",null,"工","専","授","単","履修科目の評価およびGP",null,null,null,null,null,null,null,null,null,null,null,null,null,null,null,null,null,null,null,null,null,null,null,null,null,null,null,null,null,null,null,"取得単位数","要修得\n単位数","累積GP",null,null,"STEP１",null,null,"C"]
[null," ","学"," ","業"," ","　年次",null,null,null,"　年次",null,null,null,"　年次",null,null,null,"　年次",null,null,null,"　年次",null,null,null,"　年次",null,null,null,"　年次",null,null,null,"　年次",null,null,null,null,null,null,null,null,"当該期に受講した科目の単位を区分ごとに以下の手順で",null,null,"D"]
[null,null,"基",null,"科",null,"１期",null,"２期",null,"３期",null,"４期",null,"５期",null,"６期",null,"７期",null,"８期",null,"９期",null,"10期",null,"11期",null,"12期",null,"13期",null,"14期",null,"15期",null,"16期",null,null,null,null,null,null,"入力し、要修得単位数と比較して単位取得状況を把握",null,null,"F"]
["分",null,"礎","門","目","位","評価","合計GP","評価","合計GP","評価","合計GP","評価","合計GP","評価","合計GP","評価","合計GP","評価","合計GP","評価","合計GP","評価","合計GP","評価","合計GP","評価","合計GP","評価","合計GP","評価","合計GP","評価","合計GP","評価","合計GP","評価","合計GP",null,null,null,null,null,"する。",null,null,"P"]
["基礎教育科目","必修科目","○",null,"微分積分学ＡⅠ",2,null,null,null,null,null,null,null,null,null,null,null,null,null,null,null,null,null,null,null,null,null,null,null,null,null,null,null,null,null,null,null,null,null,null,null,null,null,null,null,"必修科目 ",250152511101,{"$f":"E7","v":"微分積分学ＡⅠ"}]
[null,null,"○",null,"線形代数学Ⅰ",2,null,null,null,null,null,null,null,null,null,null,null,null,null,null,null,null,null,null,null,null,null,null,null,null,null,null,null,null,null,null,null,null,null,null,null,null,null,"１．黄色枠に受講科目の評価（A,B,C,D,F,P）を入力する。",null,null,250092300001,"線形代数学Ⅰ"]
[null,null,"○",null,"物理学基礎ＡⅠ",2,null,null,null,null,null,null,null,null,null,null,null,null,null,null,null,null,null,null,null,null,null,null,null,null,null,null,null,null,null,null,null,null,null,null,null,null,null,"２．オレンジ枠に合計修得単位数を入力する。",null,null,250223000001,"物理学基礎ＡⅠ"]
[null,null,"○",null,"微分積分学ＡⅡ",2,null,null,null,null,null,null,null,null,null,null,null,null,null,null,null,null,null,null,null,null,null,null,null,null,null,null,null,null,null,null,null,null,null,null,null,null,null,"３．灰色枠に受講科目の合計GP（単位数×GP）を計算し、",null,null,259752311107,"微分積分学ＡⅡ"]
[null,null,"○",null,"線形代数学Ⅱ",2,null,null,null,null,null,null,null,null,null,null,null,null,null,null,null,null,null,null,null,null,null,null,null,null,null,null,null,null,null,null,null,null,null,null,null,null,null,"    その値を入力する。",null,null,250223000009,"線形代数学Ⅱ"]
[null,null,"○",null,"物理学基礎ＡⅡ",2,null,null,null,null,null,null,null,null,null,null,null,null,null,null,null,null,null,null,null,null,null,null,null,null,null,null,null,null,null,null,null,null,null,null,null,null,null,"　（評価とGPの関係：A=4,B=3,C=2,D=1,F=0,PはGPの該当",null,null,250423000101,"物理学基礎ＡⅡ"]
["合計",null,null,null,null,null,null,{"$f":"SUM(H7:H12)","v":0},null,{"$f":"SUM(J7:J12)","v":0},null,{"$f":"SUM(L7:L12)","v":0},null,{"$f":"SUM(N7:N12)","v":0},null,{"$f":"SUM(P7:P12)","v":0},null,{"$f":"SUM(R7:R12)","v":0},null,{"$f":"SUM(T7:T12)","v":0},null,{"$f":"SUM(V7:V12)","v":0},null,{"$f":"SUM(X7:X12)","v":0},null,{"$f":"SUM(Z7:Z12)","v":0},null,{"$f":"SUM(AB7:AB12)","v":0},null,{"$f":"SUM(AD7:AD12)","v":0},null,{"$f":"SUM(AF7:AF12)","v":0},null,{"$f":"SUM(AH7:AH12)","v":0},null,{"$f":"SUM(AJ7:AJ12)","v":0},null,{"$f":"SUM(AL7:AL12)","v":0},{"$f":"SUM(G13,I13,K13,M13,O13,Q13,S13,U13,W13,Y13,AA13,AC13,AE13,AG13,AI13,AK13)","v":0},12,{"$f":"SUM(H13,J13,L13,N13,P13,R13,T13,V13,X13,Z13,AB13,AD13,AF13,AH13,AJ13,AL13)","v":0},null,null,"　　外なので合計GP欄は空欄とする。）",null,null,259752313118,0]
[null,null,null,null,null,null,null,null,null,null,null,null,null,null,null,null,null,null,null,null,null,null,null,null,null,null,null,null,null,null,null,null,null,null,null,null,null,null,null,null,null,null,null,"４．修得単位数を要修得単位数と比較して単位取得状況"]
["専門科目",null,"○",null,"英語Ⅴ",2,null,null,null,null,null,null,null,null,null,null,null,null,null,null,null,null,null,null,null,null,null,null,null,null,null,null,null,null,null,null,null,null,null,null,null,null,null,"    を把握する。",null,null,250223000101,"英語Ⅴ"]
[null," ","○"," ","英語Ⅵ",2,null,null,null,null,null,null,null,null,null,null,null,null,null,null,null,null,null,null,null,null,null,null,null,null,null,null,null,null,null,null,null,null,null,null,null,null,null,null,null,null,259752311110,"英語Ⅵ"]
[null,null,null,"○","フレッシュマンセミナー",1,null,null,null,null,null,null,null,null,null,null,null,null,null,null,null,null,null,null,null,null,null,null,null,null,null,null,null,null,null,null,null,null,null,null,null,null,null,"※期をまたがって開講される科目は、成績の出された期に",null,null,250072300010,"フレッシュマンセミナー"]
[null," ",null,"○","建築計画基礎演習",1,null,null,null,null,null,null,null,null,null,null,null,null,null,null,null,null,null,null,null,null,null,null,null,null,null,null,null,null,null,null,null,null,null,null,null,null,null,"  記入する。例えば通年の場合、後期に記入する。",null,null,250323000101,"建築計画基礎演習"]
[null," "," ","○","設計基礎Ⅰ",1,null,null,null,null,null,null,null,null,null,null,null,null,null,null,null,null,null,null,null,null,null,null,null,null,null,null,null,null,null,null,null,null,null,null,null,null,null,"※本表最下部の表の入力方法について",null,null,259752314102,"設計基礎Ⅰ"]
[null,null," ","○","建築構造のしくみ",2,null,null,null,null,null,null,null,null,null,null,null,null,null,null,null,null,null,null,null,null,null,null,null,null,null,null,null,null,null,null,null,null,null,null,null,null,null,"　・P評価の単位数は当該期①の欄に、",null,null,259752311108,"建築構造のしくみ"]
[null,"必"," ","○","設計基礎Ⅱ",1,null,null,null,null,null,null,null,null,null,null,null,null,null,null,null,null,null,null,null,null,null,null,null,null,null,null,null,null,null,null,null,null,null,null,null,null,null,"　・F評価の単位数は当該期②の欄に、",null,null,250423000110,"設計基礎Ⅱ"]
[null,null,null,"○","建築の数学",2,null,null,null,null,null,null,null,null,null,null,null,null,null,null,null,null,null,null,null,null,null,null,null,null,null,null,null,null,null,null,null,null,null,null,null,null,null,"　・評価F科目の再履修での修得単位数は当該期③の欄に",null,null,259752313122,"建築の数学"]
[null,null," ","○","建築計画",2,null,null,null,null,null,null,null,null,null,null,null,null,null,null,null,null,null,null,null,null,null,null,null,null,null,null,null,null,null,null,null,null,null,null,null,null,null,"　　入力する。なお、②には再履修の科目は含まない。",null,null,250072300015,"建築計画"]
[null," "," ","○","環境計画Ⅰ",2,null,null,null,null,null,null,null,null,null,null,null,null,null,null,null,null,null,null,null,null,null,null,null,null,null,null,null,null,null,null,null,null,null,null,null,null,null,"※評価Fの科目を再履修して単位を修得した場合の入力方",null,null,250223010021,"環境計画Ⅰ"]
[null," "," ","○","構造力学Ⅰ",2,null,null,null,null,null,null,null,null,null,null,null,null,null,null,null,null,null,null,null,null,null,null,null,null,null,null,null,null,null,null,null,null,null,null,null,null,null,"  法について",null,null,250423000150,"構造力学Ⅰ"]
[null,null," ","○","建築構法",2,null,null,null,null,null,null,null,null,null,null,null,null,null,null,null,null,null,null,null,null,null,null,null,null,null,null,null,null,null,null,null,null,null,null,null,null,null,"  上記１～３の手順で入力する。",null,null,250072300020,"建築構法"]
[null,"修"," ","○","建築設計Ⅰ",1,null,null,null,null,null,null,null,null,null,null,null,null,null,null,null,null,null,null,null,null,null,null,null,null,null,null,null,null,null,null,null,null,null,null,null,null,null,"※既修得単位（D以上）の科目を再履修して単位を"]
[null,null," ","○","建築史",2,null,null,null,null,null,null,null,null,null,null,null,null,null,null,null,null,null,null,null,null,null,null,null,null,null,null,null,null,null,null,null,null,null,null,null,null,null,"　修得した場合の入力方法について"]
[null,null," ","○","環境工学Ⅰ",2,null,null,null,null,null,null,null,null,null,null,null,null,null,null,null,null,null,null,null,null,null,null,null,null,null,null,null,null,null,null,null,null,null,null,null,null,null,"　今期の分を上記1～3の手順で入力した後、"]
[null,null," ","○","構造力学Ⅱ",2,null,null,null,null,null,null,null,null,null,null,null,null,null,null,null,null,null,null,null,null,null,null,null,null,null,null,null,null,null,null,null,null,null,null,null,null,null,"  過去の評価（黄色枠）と合計GP（灰色枠）"]
[null," ",null,"○","建築材料",2,null,null,null,null,null,null,null,null,null,null,null,null,null,null,null,null,null,null,null,null,null,null,null,null,null,null,null,null,null,null,null,null,null,null,null,null,null,"　を削除し、過去のオレンジ枠の合計修得単位数"]
[null,null," ","○","建築設計Ⅱ",2,null,null,null,null,null,null,null,null,null,null,null,null,null,null,null,null,null,null,null,null,null,null,null,null,null,null,null,null,null,null,null,null,null,null,null,null,null,"　から今期再履修で修得した単位数を引いた値を"]
[null,"科"," ","○","設備計画Ⅰ",2,null,null,null,null,null,null,null,null,null,null,null,null,null,null,null,null,null,null,null,null,null,null,null,null,null,null,null,null,null,null,null,null,null,null,null,null,null,"　過去のオレンジ枠の合計修得単位数に再入力する。"]
[null,null," ","○","建築振動",2]
[null,null," ","○","建築施工",2,null,null,null,null,null,null,null,null,null,null,null,null,null,null,null,null,null,null,null,null,null,null,null,null,null,null,null,null,null,null,null,null,null,null,null,null,null,"STEP２"]
[null," ",null,"○","建築設計Ⅲ",2,null,null,null,null,null,null,null,null,null,null,null,null,null,null,null,null,null,null,null,null,null,null,null,null,null,null,null,null,null,null,null,null,null,null,null,null,null,"累積GPAの値を学業成績証明書と一致するかチェックする。"]
[null,null,null,"○","都市計画",2,null,null,null,null,null,null,null,null,null,null,null,null,null,null,null,null,null,null,null,null,null,null,null,null,null,null,null,null,null,null,null,null,null,null,null,null,null,"区分ごとの単位修得状況の入力が終了した後に、シート"]
[null,null," ","○","鉄筋コンクリート構造",2,null,null,null,null,null,null,null,null,null,null,null,null,null,null,null,null,null,null,null,null,null,null,null,null,null,null,null,null,null,null,null,null,null,null,null,null,null,"右下赤枠の「累積GPA」の値が、学業成績証明書に記載されて"]
[null,"目",null,"○","鉄骨構造",2,null,null,null,null,null,null,null,null,null,null,null,null,null,null,null,null,null,null,null,null,null,null,null,null,null,null,null,null,null,null,null,null,null,null,null,null,null,"いる累積GPAの値と一致しているかチェックし、一致"]
[null,null," ","○","建築未来学概論",1,null,null,null,null,null,null,null,null,null,null,null,null,null,null,null,null,null,null,null,null,null,null,null,null,null,null,null,null,null,null,null,null,null,null,null,null,null,"していない場合はSTEP１に戻り、入力値に間違いが"]
[null,null,null,"○","建築設計Ⅳ",2,null,null,null,null,null,null,null,null,null,null,null,null,null,null,null,null,null,null,null,null,null,null,null,null,null,null,null,null,null,null,null,null,null,null,null,null,null,"ないか見直し、正しく入力する。",null,null,259152316103,{"$f":"E41","v":"建築設計Ⅳ"}]
[null," ",null,"○","建築と倫理",2,null,null,null,null,null,null,null,null,null,null,null,null,null,null,null,null,null,null,null,null,null,null,null,null,null,null,null,null,null,null,null,null,null,null,null,null,null,null,null,null,259752314116,{"$f":"E42","v":"建築と倫理"}]
[null,null,null,"○","建築法規",1,null,null,null,null,null,null,null,null,null,null,null,null,null,null,null,null,null,null,null,null,null,null,null,null,null,null,null,null,null,null,null,null,null,null,null,null,null,"（補足説明）",null,null,250052311102,{"$f":"E43","v":"建築法規"}]
[null,null," ","○","卒業論文",6,null,null,null,null,null,null,null,null,null,null,null,null,null,null,null,null,null,null,null,null,null,null,null,null,null,null,null,null,null,null,null,null,null,null,null,null,null,"※留年した場合は「期を増やす」欄で列を増やす。",null,null,250223000110,{"$f":"E44","v":"卒業論文"}]
[null," "," ","○","卒業設計",2,null,null,null,null,null,null,null,null,null,null,null,null,null,null,null,null,null,null,null,null,null,null,null,null,null,null,null,null,null,null,null,null,null,null,null,null,null,"※評価Pの科目については、GPおよびGPAの計算に含ま",null,null,250072300025,{"$f":"E45","v":"卒業設計"}]
["合計",null,null,null,null,null,null,{"$f":"SUM(H15:H45)","v":0},null,{"$f":"SUM(J15:J45)","v":0},null,{"$f":"SUM(L15:L45)","v":0},null,{"$f":"SUM(N15:N45)","v":0},null,{"$f":"SUM(P15:P45)","v":0},null,{"$f":"SUM(R15:R45)","v":0},null,{"$f":"SUM(T15:T45)","v":0},null,{"$f":"SUM(V15:V45)","v":0},null,{"$f":"SUM(X15:X45)","v":0},null,{"$f":"SUM(Z15:Z45)","v":0},null,{"$f":"SUM(AB15:AB45)","v":0},null,{"$f":"SUM(AD15:AD45)","v":0},null,{"$f":"SUM(AF15:AF45)","v":0},null,{"$f":"SUM(AH15:AH45)","v":0},null,{"$f":"SUM(AJ15:AJ45)","v":0},null,{"$f":"SUM(AL15:AL45)","v":0},{"$f":"SUM(G46,I46,K46,M46,O46,Q46,S46,U46,W46,Y46,AA46,AC46,AE46,AG46,AI46,AK46)","v":0},59,{"$f":"SUM(H46,J46,L46,N46,P46,R46,T46,V46,X46,Z46,AB46,AD46,AF46,AH46,AJ46,AL46)","v":0},null,null,"　ない。しかしながら、進級・卒業要件の累積単位数"]
[null,null,null,null,null,null,null,null,null,null,null,null,null,null,null,null,null,null,null,null,null,null,null,null,null,null,null,null,null,null,null,null,null,null,null,null,null,null,null,null,null,null,null,"　には含まれることがあるので、標準履修課程表で確認"]
["専門科目","選択科目Ａ群",null,"○","地域施設計画",2,null,null,null,null,null,null,null,null,null,null,null,null,null,null,null,null,null,null,null,null,null,null,null,null,null,null,null,null,null,null,null,null,null,null,null,null,null,"　すること。（インターンシップ等）",null,"選択科目Ａ群",259752314117,{"$f":"E48","v":"地域施設計画"}]
[null,null,null,"○","学外実習",1,null,null,null,null,null,null,null,null,null,null,null,null,null,null,null,null,null,null,null,null,null,null,null,null,null,null,null,null,null,null,null,null,null,null,null,null,null,"※随意科目については、GPおよびGPAの計算に含まれない。",null,null,259752314401,{"$f":"E49","v":"学外実習"}]
[null,null,null,"○","地域環境史",2,null,null,null,null,null,null,null,null,null,null,null,null,null,null,null,null,null,null,null,null,null,null,null,null,null,null,null,null,null,null,null,null,null,null,null,null,null,"　また、進級・卒業要件にも含まれない。",null,null,259752314113,{"$f":"E50","v":"地域環境史"}]
[null,null,"合計",null,null,null,null,{"$f":"SUM(H48:H50)","v":0},null,{"$f":"SUM(J48:J50)","v":0},null,{"$f":"SUM(L48:L50)","v":0},null,{"$f":"SUM(N48:N50)","v":0},null,{"$f":"SUM(P48:P50)","v":0},null,{"$f":"SUM(R48:R50)","v":0},null,{"$f":"SUM(T48:T50)","v":0},null,{"$f":"SUM(V48:V50)","v":0},null,{"$f":"SUM(X48:X50)","v":0},null,{"$f":"SUM(Z48:Z50)","v":0},null,{"$f":"SUM(AB48:AB50)","v":0},null,{"$f":"SUM(AD48:AD50)","v":0},null,{"$f":"SUM(AF48:AF50)","v":0},null,{"$f":"SUM(AH48:AH50)","v":0},null,{"$f":"SUM(AJ48:AJ50)","v":0},null,{"$f":"SUM(AL48:AL50)","v":0},{"$f":"SUM(G51,I51,K51,M51,O51,Q51,S51,U51,W51,Y51,AA51,AC51,AE51,AG51,AI51,AK51)","v":0},2,{"$f":"SUM(H51,J51,L51,N51,P51,R51,T51,V51,X51,Z51,AB51,AD51,AF51,AH51,AJ51,AL51)","v":0}]
[null,"選択科目Ｂ群",null,"○","環境計画Ⅱ",2,null,null,null,null,null,null,null,null,null,null,null,null,null,null,null,null,null,null,null,null,null,null,null,null,null,null,null,null,null,null,null,null,null,null,null,null,null,null,null,"選択科目Ｂ群",250223000102,{"$f":"E52","v":"環境計画Ⅱ"}]
[null,null,null,"○","環境工学Ⅱ",2,null,null,null,null,null,null,null,null,null,null,null,null,null,null,null,null,null,null,null,null,null,null,null,null,null,null,null,null,null,null,null,null,null,null,null,null,null,null,null,null,259752314106,{"$f":"E53","v":"環境工学Ⅱ"}]
[null,null,null,"○","設備計画Ⅱ",2,null,null,null,null,null,null,null,null,null,null,null,null,null,null,null,null,null,null,null,null,null,null,null,null,null,null,null,null,null,null,null,null,null,null,null,null,null,null,null,null,250223000150,{"$f":"E54","v":"設備計画Ⅱ"}]
[null,null,null,"○","設備計画演習",1,null,null,null,null,null,null,null,null,null,null,null,null,null,null,null,null,null,null,null,null,null,null,null,null,null,null,null,null,null,null,null,null,null,null,null,null,null,null,null,null,250223000160,{"$f":"E55","v":"設備計画演習"}]
[null,null,"合計",null,null,null,null,{"$f":"SUM(H52:H55)","v":0},null,{"$f":"SUM(J52:J55)","v":0},null,{"$f":"SUM(L52:L55)","v":0},null,{"$f":"SUM(N52:N55)","v":0},null,{"$f":"SUM(P52:P55)","v":0},null,{"$f":"SUM(R52:R55)","v":0},null,{"$f":"SUM(T52:T55)","v":0},null,{"$f":"SUM(V52:V55)","v":0},null,{"$f":"SUM(X52:X55)","v":0},null,{"$f":"SUM(Z52:Z55)","v":0},null,{"$f":"SUM(AB52:AB55)","v":0},null,{"$f":"SUM(AD52:AD55)","v":0},null,{"$f":"SUM(AF52:AF55)","v":0},null,{"$f":"SUM(AH52:AH55)","v":0},null,{"$f":"SUM(AJ52:AJ55)","v":0},null,{"$f":"SUM(AL52:AL55)","v":0},{"$f":"SUM(G56,I56,K56,M56,O56,Q56,S56,U56,W56,Y56,AA56,AC56,AE56,AG56,AI56,AK56)","v":0},4,{"$f":"SUM(H56,J56,L56,N56,P56,R56,T56,V56,X56,Z56,AB56,AD56,AF56,AH56,AJ56,AL56)","v":0}]
[null,"選択科目Ｃ群",null,"○","建築デジタルデザイン論",1,null,null,null,null,null,null,null,null,null,null,null,null,null,null,null,null,null,null,null,null,null,null,null,null,null,null,null,null,null,null,null,null,null,null,null,null,null,null,null,"選択科目Ｃ群",251330000005,{"$f":"E57","v":"建築デジタルデザイン論"}]
[null,null,null,"○","構造力学演習Ⅰ",1,null,null,null,null,null,null,null,null,null,null,null,null,null,null,null,null,null,null,null,null,null,null,null,null,null,null,null,null,null,null,null,null,null,null,null,null,null,null,null,null,259752313119,"構造力学演習Ⅰ"]
[null,null,null,"○","建築デザイン",2,null,null,null,null,null,null,null,null,null,null,null,null,null,null,null,null,null,null,null,null,null,null,null,null,null,null,null,null,null,null,null,null,null,null,null,null,null,null,null,null,259752311201,"建築デザイン"]
[null,null,null,"○","構造力学演習Ⅱ",1,null,null,null,null,null,null,null,null,null,null,null,null,null,null,null,null,null,null,null,null,null,null,null,null,null,null,null,null,null,null,null,null,null,null,null,null,null,null,null,null,259752311202,"構造力学演習Ⅱ"]
[null,null,null,"○","構造力学Ⅲ",2,null,null,null,null,null,null,null,null,null,null,null,null,null,null,null,null,null,null,null,null,null,null,null,null,null,null,null,null,null,null,null,null,null,null,null,null,null,null,null,null,259132312101,"構造力学Ⅲ"]
[null,null,null,"○","建築材料の科学",2,null,null,null,null,null,null,null,null,null,null,null,null,null,null,null,null,null,null,null,null,null,null,null,null,null,null,null,null,null,null,null,null,null,null,null,null,null,null,null,null,250523000101,"建築材料の科学"]
[null,null,null,"○","建築実験",1,null,null,null,null,null,null,null,null,null,null,null,null,null,null,null,null,null,null,null,null,null,null,null,null,null,null,null,null,null,null,null,null,null,null,null,null,null,null,null,null,250072300005,"建築実験"]
[null,null,null,"○","プログラミング演習",1,null,null,null,null,null,null,null,null,null,null,null,null,null,null,null,null,null,null,null,null,null,null,null,null,null,null,null,null,null,null,null,null,null,null,null,null,null,null,null,null,259752313301,"プログラミング演習"]
[null,null,null,"○","基礎構造",2,null,null,null,null,null,null,null,null,null,null,null,null,null,null,null,null,null,null,null,null,null,null,null,null,null,null,null,null,null,null,null,null,null,null,null,null,null,null,null,null,259742311201,"基礎構造"]
[null,null,null,"○","構造設計",2,null,null,null,null,null,null,null,null,null,null,null,null,null,null,null,null,null,null,null,null,null,null,null,null,null,null,null,null,null,null,null,null,null,null,null,null,null,null,null,null,259152312103,"構造設計"]
[null,null,null,"○","建築の職能と制度",1,null,null,null,null,null,null,null,null,null,null,null,null,null,null,null,null,null,null,null,null,null,null,null,null,null,null,null,null,null,null,null,null,null,null,null,null,null,null,null,null,250072300001,"建築の職能と制度","2件以上ヒット","鉄筋コンクリート構造演習 250072300001\n鉄筋コンクリート構造演習（建） 250152311201"]
[null,null,null,"○","鉄筋コンクリート構造演習",1]
[null,null,null,"○","インターンシップ",1,null,null,null,null,null,null,null,null,null,null,null,null,null,null,null,null,null,null,null,null,null,null,null,null,null,null,null,null,null,null,null,null,null,null,null,null,null,null,null,null,250223010041,"インターンシップ"]
[null,null,"合計",null,null,null,null,{"$f":"SUM(H57:H69)","v":0},null,{"$f":"SUM(J57:J69)","v":0},null,{"$f":"SUM(L57:L69)","v":0},null,{"$f":"SUM(N57:N69)","v":0},null,{"$f":"SUM(P57:P69)","v":0},null,{"$f":"SUM(R57:R69)","v":0},null,{"$f":"SUM(T57:T69)","v":0},null,{"$f":"SUM(V57:V69)","v":0},null,{"$f":"SUM(X57:X69)","v":0},null,{"$f":"SUM(Z57:Z69)","v":0},null,{"$f":"SUM(AB57:AB69)","v":0},null,{"$f":"SUM(AD57:AD69)","v":0},null,{"$f":"SUM(AF57:AF69)","v":0},null,{"$f":"SUM(AH57:AH69)","v":0},null,{"$f":"SUM(AJ57:AJ69)","v":0},null,{"$f":"SUM(AL57:AL69)","v":0},{"$f":"SUM(G70,I70,K70,M70,O70,Q70,S70,U70,W70,Y70,AA70,AC70,AE70,AG70,AI70,AK70)","v":0},8,{"$f":"SUM(H70,J70,L70,N70,P70,R70,T70,V70,X70,Z70,AB70,AD70,AF70,AH70,AJ70,AL70)","v":0}]
["Ａ群・Ｂ群・Ｃ群　合計",null,null,null,null,null,null,{"$f":"H51+H56+H70","v":0},null,{"$f":"J51+J56+J70","v":0},null,{"$f":"L51+L56+L70","v":0},null,{"$f":"N51+N56+N70","v":0},null,{"$f":"P51+P56+P70","v":0},null,{"$f":"R51+R56+R70","v":0},null,{"$f":"T51+T56+T70","v":0},null,{"$f":"V51+V56+V70","v":0},null,{"$f":"X51+X56+X70","v":0},null,{"$f":"Z51+Z56+Z70","v":0},null,{"$f":"AB51+AB56+AB70","v":0},null,{"$f":"AD51+AD56+AD70","v":0},null,{"$f":"AF51+AF56+AF70","v":0},null,{"$f":"AH51+AH56+AH70","v":0},null,{"$f":"AJ51+AJ56+AJ70","v":0},null,{"$f":"AL51+AL56+AL70","v":0},{"$f":"SUM(G71,I71,K71,M71,O71,Q71,S71,U71,W71,Y71,AA71,AC71,AE71,AG71,AI71,AK71)","v":0},20,{"$f":"SUM(H71,J71,L71,N71,P71,R71,T71,V71,X71,Z71,AB71,AD71,AF71,AH71,AJ71,AL71)","v":0}]
[]
["専門科目","選択科目Ｄ群","○"," ","情報システム",2,null,null,null,null,null,null,null,null,null,null,null,null,null,null,null,null,null,null,null,null,null,null,null,null,null,null,null,null,null,null,null,null,null,null,null,null,null,null,null,"選択科目Ｄ群",259742312103,{"$f":"E73","v":"情報システム"}]
[null,null,"○"," ","化学基礎",2,null,null,null,null,null,null,null,null,null,null,null,null,null,null,null,null,null,null,null,null,null,null,null,null,null,null,null,null,null,null,null,null,null,null,null,null,null,null,null,null,250099110002,"化学基礎"]
[null,null,"○"," ","地球科学基礎",2,null,null,null,null,null,null,null,null,null,null,null,null,null,null,null,null,null,null,null,null,null,null,null,null,null,null,null,null,null,null,null,null,null,null,null,null,null,null,null,null,250299110001,"地球科学基礎"]
[null,"選択科目Ｅ群","○"," ","原子力・放射線と環境",2,null,null,null,null,null,null,null,null,null,null,null,null,null,null,null,null,null,null,null,null,null,null,null,null,null,null,null,null,null,null,null,null,null,null,null,null,null,null,null,"選択科目Ｅ群",250042099101,"原子力・放射線と環境"]
[null,null,"○"," ","生産工学論",2,null,null,null,null,null,null,null,null,null,null,null,null,null,null,null,null,null,null,null,null,null,null,null,null,null,null,null,null,null,null,null,null,null,null,null,null,null,null,null,null,250299200001,"生産工学論"]
[null,null,"○"," ","エレクトロニクス論",2,null,null,null,null,null,null,null,null,null,null,null,null,null,null,null,null,null,null,null,null,null,null,null,null,null,null,null,null,null,null,null,null,null,null,null,null,null,null,null,null,250228100002,"エレクトロニクス論"]
[null,null,"○"," ","環境工学論",2,null,null,null,null,null,null,null,null,null,null,null,null,null,null,null,null,null,null,null,null,null,null,null,null,null,null,null,null,null,null,null,null,null,null,null,null,null,null,null,null,250228100004,"環境工学論"]
[null,null,"○",null,"材料科学論",2,null,null,null,null,null,null,null,null,null,null,null,null,null,null,null,null,null,null,null,null,null,null,null,null,null,null,null,null,null,null,null,null,null,null,null,null,null,null,null,null,250228100005,"材料科学論"]
[null,null,"○"," ","科学技術論",2,null,null,null,null,null,null,null,null,null,null,null,null,null,null,null,null,null,null,null,null,null,null,null,null,null,null,null,null,null,null,null,null,null,null,null,null,null,null,null,null,250228100006,"科学技術論"]
[null,null,"○"," ","エネルギー工学論",2,null,null,null,null,null,null,null,null,null,null,null,null,null,null,null,null,null,null,null,null,null,null,null,null,null,null,null,null,null,null,null,null,null,null,null,null,null,null,null,null,250228100003,"エネルギー工学論"]
["Ｄ群・Ｅ群　合計",null,null,null,null,null,null,{"$f":"SUM(H73:H82)","v":0},null,{"$f":"SUM(J73:J82)","v":0},null,{"$f":"SUM(L73:L82)","v":0},null,{"$f":"SUM(N73:N82)","v":0},null,{"$f":"SUM(P73:P82)","v":0},null,{"$f":"SUM(R73:R82)","v":0},null,{"$f":"SUM(T73:T82)","v":0},null,{"$f":"SUM(V73:V82)","v":0},null,{"$f":"SUM(X73:X82)","v":0},null,{"$f":"SUM(Z73:Z82)","v":0},null,{"$f":"SUM(AB73:AB82)","v":0},null,{"$f":"SUM(AD73:AD82)","v":0},null,{"$f":"SUM(AF73:AF82)","v":0},null,{"$f":"SUM(AH73:AH82)","v":0},null,{"$f":"SUM(AJ73:AJ82)","v":0},null,{"$f":"SUM(AL73:AL82)","v":0},{"$f":"SUM(G83,I83,K83,M83,O83,Q83,S83,U83,W83,Y83,AA83,AC83,AE83,AG83,AI83,AK83)","v":0},2,{"$f":"SUM(H83,J83,L83,N83,P83,R83,T83,V83,X83,Z83,AB83,AD83,AF83,AH83,AJ83,AL83)","v":0}]
[]
["専門教育科目合計（単位数とGP）",null,null,null,null,null,{"$f":"SUM(G13,G46,G71,G83)","v":0},0,0,0,0,0,0,0,0,0,0,0,0,0,0,0,0,0,0,0,0,0,0,0,0,0,0,0,0,0,0,0,{"$f":"SUM(G85,I85,K85,M85,O85,Q85,S85,U85,W85,Y85,AA85,AC85,AE85,AG85,AI85,AK85)","v":0},93,{"$f":"SUM(H85,J85,L85,N85,P85,R85,T85,V85,X85,Z85,AB85,AD85,AF85,AH85,AJ85,AL85)","v":0}]
["(共通＋専門)教育科目合計（単位数とGP）",null,null,null,null,null,{"$f":"'単位修得状況確認表（共通教育科目，外国人留学生）'!H25+G85","v":0},{"$f":"'単位修得状況確認表（共通教育科目，外国人留学生）'!I25+H85","v":0},{"$f":"'単位修得状況確認表（共通教育科目，外国人留学生）'!J25+I85","v":0},{"$f":"'単位修得状況確認表（共通教育科目，外国人留学生）'!K25+J85","v":0},{"$f":"'単位修得状況確認表（共通教育科目，外国人留学生）'!L25+K85","v":0},{"$f":"'単位修得状況確認表（共通教育科目，外国人留学生）'!M25+L85","v":0},{"$f":"'単位修得状況確認表（共通教育科目，外国人留学生）'!N25+M85","v":0},{"$f":"'単位修得状況確認表（共通教育科目，外国人留学生）'!O25+N85","v":0},{"$f":"'単位修得状況確認表（共通教育科目，外国人留学生）'!P25+O85","v":0},{"$f":"'単位修得状況確認表（共通教育科目，外国人留学生）'!Q25+P85","v":0},{"$f":"'単位修得状況確認表（共通教育科目，外国人留学生）'!R25+Q85","v":0},{"$f":"'単位修得状況確認表（共通教育科目，外国人留学生）'!S25+R85","v":0},{"$f":"'単位修得状況確認表（共通教育科目，外国人留学生）'!T25+S85","v":0},{"$f":"'単位修得状況確認表（共通教育科目，外国人留学生）'!U25+T85","v":0},{"$f":"'単位修得状況確認表（共通教育科目，外国人留学生）'!V25+U85","v":0},{"$f":"'単位修得状況確認表（共通教育科目，外国人留学生）'!W25+V85","v":0},{"$f":"'単位修得状況確認表（共通教育科目，外国人留学生）'!X25+W85","v":0},{"$f":"'単位修得状況確認表（共通教育科目，外国人留学生）'!Y25+X85","v":0},{"$f":"'単位修得状況確認表（共通教育科目，外国人留学生）'!Z25+Y85","v":0},{"$f":"'単位修得状況確認表（共通教育科目，外国人留学生）'!AA25+Z85","v":0},{"$f":"'単位修得状況確認表（共通教育科目，外国人留学生）'!AB25+AA85","v":0},{"$f":"'単位修得状況確認表（共通教育科目，外国人留学生）'!AC25+AB85","v":0},{"$f":"'単位修得状況確認表（共通教育科目，外国人留学生）'!AD25+AC85","v":0},{"$f":"'単位修得状況確認表（共通教育科目，外国人留学生）'!AE25+AD85","v":0},{"$f":"'単位修得状況確認表（共通教育科目，外国人留学生）'!AF25+AE85","v":0},{"$f":"'単位修得状況確認表（共通教育科目，外国人留学生）'!AG25+AF85","v":0},{"$f":"'単位修得状況確認表（共通教育科目，外国人留学生）'!AH25+AG85","v":0},{"$f":"'単位修得状況確認表（共通教育科目，外国人留学生）'!AI25+AH85","v":0},{"$f":"'単位修得状況確認表（共通教育科目，外国人留学生）'!AJ25+AI85","v":0},{"$f":"'単位修得状況確認表（共通教育科目，外国人留学生）'!AK25+AJ85","v":0},{"$f":"'単位修得状況確認表（共通教育科目，外国人留学生）'!AL25+AK85","v":0},{"$f":"'単位修得状況確認表（共通教育科目，外国人留学生）'!AM25+AL85","v":0},{"$f":"SUM(G86,I86,K86,M86,O86,Q86,S86,U86,W86,Y86,AA86,AC86,AE86,AG86,AI86,AK86)","v":0},126,{"$f":"SUM(H86,J86,L86,N86,P86,R86,T86,V86,X86,Z86,AB86,AD86,AF86,AH86,AJ86,AL86)","v":0}]
["※","「期を増やす」欄により学年を４年間増やすことが可。",null,null,null,null,null,null,null,null,null,null,null,null,null,null,null,null,null,null,null,null,null,null,null,null,null,null,null,null,null,null,null,null,null,null,null,null,"累積GPA",null,{"$f":"IF(AM86-AM89>0,AO86/(AM86-AM89-'単位修得状況確認表（共通教育科目，外国人留学生）'!AN28+AM90+'単位修得状況確認表（共通教育科目，外国人留学生）'!AN29-AM91-'単位修得状況確認表（共通教育科目，外国人留学生）'!AN30),\"\")","v":""}]
[]
["①【専門教育科目】評価Pの単位数",null,null,null,null,null,null,null,null,null,null,null,null,null,null,null,null,null,null,null,null,null,null,null,null,null,null,null,null,null,null,null,null,null,null,null,null,null,{"$f":"SUM(G89:AL89)","v":0}]
["②【専門教育科目】不合格（評価F）の単位数",null,null,null,null,null,null,null,null,null,null,null,null,null,null,null,null,null,null,null,null,null,null,null,null,null,null,null,null,null,null,null,null,null,null,null,null,null,{"$f":"SUM(G90:AL90)","v":0}]
["③【専門教育科目】評価F科目の再履修での修得単位数",null,null,null,null,null,null,null,null,null,null,null,null,null,null,null,null,null,null,null,null,null,null,null,null,null,null,null,null,null,null,null,null,null,null,null,null,null,{"$f":"SUM(G91:AL91)","v":0}]

{"sheet":"累積グラフ","index":5,"n_rows":298,"n_cols":8,"rows_kept":298,"cut":false,"hidden":false,"merged":[[81,2,81,3],[3,6,3,7],[3,2,3,3],[3,4,3,5],[42,2,42,3],[42,4,42,5]]}
[]
[null,"共通教育科目（必修科目）"]
[]
[null,null,"初年次教育科目",null,"ｸﾞﾛｰﾊﾞﾙ教育科目",null,"日本語・日本事情科目"]
[null,null,"取得単位数","累積取得単位数","取得単位数","累積取得単位数","取得単位数","累積取得単位数"]
[null,"1期終了時",{"$f":"SUM('単位修得状況確認表（共通教育科目，外国人留学生）'!H$7:H$12)","v":0},{"$f":"SUM(C$6:C6)","v":0},{"$f":"SUM('単位修得状況確認表（共通教育科目，外国人留学生）'!H$13:H$14)","v":0},{"$f":"SUM(E$6:E6)","v":0},{"$f":"SUM('単位修得状況確認表（共通教育科目，外国人留学生）'!H$15:H$16)","v":0},{"$f":"SUM(G$6:G6)","v":0}]
[null,"2期終了時",{"$f":"SUM('単位修得状況確認表（共通教育科目，外国人留学生）'!J$7:J$12)","v":0},{"$f":"SUM(C$6:C7)","v":0},{"$f":"SUM('単位修得状況確認表（共通教育科目，外国人留学生）'!J$13:J$14)","v":0},{"$f":"SUM(E$6:E7)","v":0},{"$f":"SUM('単位修得状況確認表（共通教育科目，外国人留学生）'!J$15:J$16)","v":0},{"$f":"SUM(G$6:G7)","v":0}]
[null,"3期終了時",{"$f":"SUM('単位修得状況確認表（共通教育科目，外国人留学生）'!L$7:L$12)","v":0},{"$f":"SUM(C$6:C8)","v":0},{"$f":"SUM('単位修得状況確認表（共通教育科目，外国人留学生）'!L$13:L$14)","v":0},{"$f":"SUM(E$6:E8)","v":0},{"$f":"SUM('単位修得状況確認表（共通教育科目，外国人留学生）'!L$15:L$16)","v":0},{"$f":"SUM(G$6:G8)","v":0}]
[null,"4期終了時",{"$f":"SUM('単位修得状況確認表（共通教育科目，外国人留学生）'!N$7:N$12)","v":0},{"$f":"SUM(C$6:C9)","v":0},{"$f":"SUM('単位修得状況確認表（共通教育科目，外国人留学生）'!N$13:N$14)","v":0},{"$f":"SUM(E$6:E9)","v":0},{"$f":"SUM('単位修得状況確認表（共通教育科目，外国人留学生）'!N$15:N$16)","v":0},{"$f":"SUM(G$6:G9)","v":0}]
[null,"5期終了時",{"$f":"SUM('単位修得状況確認表（共通教育科目，外国人留学生）'!P$7:P$12)","v":0},{"$f":"SUM(C$6:C10)","v":0},{"$f":"SUM('単位修得状況確認表（共通教育科目，外国人留学生）'!P$13:P$14)","v":0},{"$f":"SUM(E$6:E10)","v":0},{"$f":"SUM('単位修得状況確認表（共通教育科目，外国人留学生）'!P$15:P$16)","v":0},{"$f":"SUM(G$6:G10)","v":0}]
[null,"6期終了時",{"$f":"SUM('単位修得状況確認表（共通教育科目，外国人留学生）'!R$7:R$12)","v":0},{"$f":"SUM(C$6:C11)","v":0},{"$f":"SUM('単位修得状況確認表（共通教育科目，外国人留学生）'!R$13:R$14)","v":0},{"$f":"SUM(E$6:E11)","v":0},{"$f":"SUM('単位修得状況確認表（共通教育科目，外国人留学生）'!R$15:R$16)","v":0},{"$f":"SUM(G$6:G11)","v":0}]
[null,"7期終了時",{"$f":"SUM('単位修得状況確認表（共通教育科目，外国人留学生）'!T$7:T$12)","v":0},{"$f":"SUM(C$6:C12)","v":0},{"$f":"SUM('単位修得状況確認表（共通教育科目，外国人留学生）'!T$13:T$14)","v":0},{"$f":"SUM(E$6:E12)","v":0},{"$f":"SUM('単位修得状況確認表（共通教育科目，外国人留学生）'!T$15:T$16)","v":0},{"$f":"SUM(G$6:G12)","v":0}]
[null,"8期終了時",{"$f":"SUM('単位修得状況確認表（共通教育科目，外国人留学生）'!V$7:V$12)","v":0},{"$f":"SUM(C$6:C13)","v":0},{"$f":"SUM('単位修得状況確認表（共通教育科目，外国人留学生）'!V$13:V$14)","v":0},{"$f":"SUM(E$6:E13)","v":0},{"$f":"SUM('単位修得状況確認表（共通教育科目，外国人留学生）'!V$15:V$16)","v":0},{"$f":"SUM(G$6:G13)","v":0}]
[null,"9期終了時",{"$f":"SUM('単位修得状況確認表（共通教育科目，外国人留学生）'!X$7:X$12)","v":0},{"$f":"IF(SUM($C256:$C$263)=0,\"\",SUM(C$6:C14))","v":""},{"$f":"SUM('単位修得状況確認表（共通教育科目，外国人留学生）'!X$13:X$14)","v":0},{"$f":"IF(SUM($C256:$C$263)=0,\"\",SUM(E$6:E14))","v":""},{"$f":"SUM('単位修得状況確認表（共通教育科目，外国人留学生）'!X$15:X$16)","v":0},{"$f":"IF(SUM($C256:$C$263)=0,\"\",SUM(G$6:G14))","v":""}]
[null,"10期終了時",{"$f":"SUM('単位修得状況確認表（共通教育科目，外国人留学生）'!Z$7:Z$12)","v":0},{"$f":"IF(SUM($C257:$C$263)=0,\"\",SUM(C$6:C15))","v":""},{"$f":"SUM('単位修得状況確認表（共通教育科目，外国人留学生）'!Z$13:Z$14)","v":0},{"$f":"IF(SUM($C257:$C$263)=0,\"\",SUM(E$6:E15))","v":""},{"$f":"SUM('単位修得状況確認表（共通教育科目，外国人留学生）'!Z$15:Z$16)","v":0},{"$f":"IF(SUM($C257:$C$263)=0,\"\",SUM(G$6:G15))","v":""}]
[null,"11期終了時",{"$f":"SUM('単位修得状況確認表（共通教育科目，外国人留学生）'!AB$7:AB$12)","v":0},{"$f":"IF(SUM($C258:$C$263)=0,\"\",SUM(C$6:C16))","v":""},{"$f":"SUM('単位修得状況確認表（共通教育科目，外国人留学生）'!AB$13:AB$14)","v":0},{"$f":"IF(SUM($C258:$C$263)=0,\"\",SUM(E$6:E16))","v":""},{"$f":"SUM('単位修得状況確認表（共通教育科目，外国人留学生）'!AB$15:AB$16)","v":0},{"$f":"IF(SUM($C258:$C$263)=0,\"\",SUM(G$6:G16))","v":""}]
[null,"12期終了時",{"$f":"SUM('単位修得状況確認表（共通教育科目，外国人留学生）'!AD$7:AD$12)","v":0},{"$f":"IF(SUM($C259:$C$263)=0,\"\",SUM(C$6:C17))","v":""},{"$f":"SUM('単位修得状況確認表（共通教育科目，外国人留学生）'!AD$13:AD$14)","v":0},{"$f":"IF(SUM($C259:$C$263)=0,\"\",SUM(E$6:E17))","v":""},{"$f":"SUM('単位修得状況確認表（共通教育科目，外国人留学生）'!AD$15:AD$16)","v":0},{"$f":"IF(SUM($C259:$C$263)=0,\"\",SUM(G$6:G17))","v":""}]
[null,"13期終了時",{"$f":"SUM('単位修得状況確認表（共通教育科目，外国人留学生）'!AF$7:AF$12)","v":0},{"$f":"IF(SUM($C260:$C$263)=0,\"\",SUM(C$6:C18))","v":""},{"$f":"SUM('単位修得状況確認表（共通教育科目，外国人留学生）'!AF$13:AF$14)","v":0},{"$f":"IF(SUM($C260:$C$263)=0,\"\",SUM(E$6:E18))","v":""},{"$f":"SUM('単位修得状況確認表（共通教育科目，外国人留学生）'!AF$15:AF$16)","v":0},{"$f":"IF(SUM($C260:$C$263)=0,\"\",SUM(G$6:G18))","v":""}]
[null,"14期終了時",{"$f":"SUM('単位修得状況確認表（共通教育科目，外国人留学生）'!AH$7:AH$12)","v":0},{"$f":"IF(SUM($C261:$C$263)=0,\"\",SUM(C$6:C19))","v":""},{"$f":"SUM('単位修得状況確認表（共通教育科目，外国人留学生）'!AH$13:AH$14)","v":0},{"$f":"IF(SUM($C261:$C$263)=0,\"\",SUM(E$6:E19))","v":""},{"$f":"SUM('単位修得状況確認表（共通教育科目，外国人留学生）'!AH$15:AH$16)","v":0},{"$f":"IF(SUM($C261:$C$263)=0,\"\",SUM(G$6:G19))","v":""}]
[null,"15期終了時",{"$f":"SUM('単位修得状況確認表（共通教育科目，外国人留学生）'!AJ$7:AJ$12)","v":0},{"$f":"IF(SUM($C262:$C$263)=0,\"\",SUM(C$6:C20))","v":""},{"$f":"SUM('単位修得状況確認表（共通教育科目，外国人留学生）'!AJ$13:AJ$14)","v":0},{"$f":"IF(SUM($C262:$C$263)=0,\"\",SUM(E$6:E20))","v":""},{"$f":"SUM('単位修得状況確認表（共通教育科目，外国人留学生）'!AJ$15:AJ$16)","v":0},{"$f":"IF(SUM($C262:$C$263)=0,\"\",SUM(G$6:G20))","v":""}]
[null,"16期終了時",{"$f":"SUM('単位修得状況確認表（共通教育科目，外国人留学生）'!AL$7:AL$12)","v":0},{"$f":"IF(SUM($C263:$C$263)=0,\"\",SUM(C$6:C21))","v":""},{"$f":"SUM('単位修得状況確認表（共通教育科目，外国人留学生）'!AL$13:AL$14)","v":0},{"$f":"IF(SUM($C263:$C$263)=0,\"\",SUM(E$6:E21))","v":""},{"$f":"SUM('単位修得状況確認表（共通教育科目，外国人留学生）'!AL$15:AL$16)","v":0},{"$f":"IF(SUM($C263:$C$263)=0,\"\",SUM(G$6:G21))","v":""}]
[]
[]
[]
[]
[]
[]
[]
[]
[]
[]
[]
[]
[]
[]
[]
[]
[]
[]
[]
[null,"共通教育科目（選択必修科目）"]
[]
[null,null,"教養教育科目",null,"教養活用科目"]
[null,null,"取得単位数","累積取得単位数","取得単位数","累積取得単位数"]
[null,"1期終了時",{"$f":"SUM('単位修得状況確認表（共通教育科目，外国人留学生）'!H$18:H$21)","v":0},{"$f":"SUM(C$45:C45)","v":0},{"$f":"SUM('単位修得状況確認表（共通教育科目，外国人留学生）'!H$22:H$23)","v":0},{"$f":"SUM(E$45:E45)","v":0}]
[null,"2期終了時",{"$f":"SUM('単位修得状況確認表（共通教育科目，外国人留学生）'!J$18:J$21)","v":0},{"$f":"SUM(C$45:C46)","v":0},{"$f":"SUM('単位修得状況確認表（共通教育科目，外国人留学生）'!J$22:J$23)","v":0},{"$f":"SUM(E$45:E46)","v":0}]
[null,"3期終了時",{"$f":"SUM('単位修得状況確認表（共通教育科目，外国人留学生）'!L$18:L$21)","v":0},{"$f":"SUM(C$45:C47)","v":0},{"$f":"SUM('単位修得状況確認表（共通教育科目，外国人留学生）'!L$22:L$23)","v":0},{"$f":"SUM(E$45:E47)","v":0}]
[null,"4期終了時",{"$f":"SUM('単位修得状況確認表（共通教育科目，外国人留学生）'!N$18:N$21)","v":0},{"$f":"SUM(C$45:C48)","v":0},{"$f":"SUM('単位修得状況確認表（共通教育科目，外国人留学生）'!N$22:N$23)","v":0},{"$f":"SUM(E$45:E48)","v":0}]
[null,"5期終了時",{"$f":"SUM('単位修得状況確認表（共通教育科目，外国人留学生）'!P$18:P$21)","v":0},{"$f":"SUM(C$45:C49)","v":0},{"$f":"SUM('単位修得状況確認表（共通教育科目，外国人留学生）'!P$22:P$23)","v":0},{"$f":"SUM(E$45:E49)","v":0}]
[null,"6期終了時",{"$f":"SUM('単位修得状況確認表（共通教育科目，外国人留学生）'!R$18:R$21)","v":0},{"$f":"SUM(C$45:C50)","v":0},{"$f":"SUM('単位修得状況確認表（共通教育科目，外国人留学生）'!R$22:R$23)","v":0},{"$f":"SUM(E$45:E50)","v":0}]
[null,"7期終了時",{"$f":"SUM('単位修得状況確認表（共通教育科目，外国人留学生）'!T$18:T$21)","v":0},{"$f":"SUM(C$45:C51)","v":0},{"$f":"SUM('単位修得状況確認表（共通教育科目，外国人留学生）'!T$22:T$23)","v":0},{"$f":"SUM(E$45:E51)","v":0}]
[null,"8期終了時",{"$f":"SUM('単位修得状況確認表（共通教育科目，外国人留学生）'!V$18:V$21)","v":0},{"$f":"SUM(C$45:C52)","v":0},{"$f":"SUM('単位修得状況確認表（共通教育科目，外国人留学生）'!V$22:V$23)","v":0},{"$f":"SUM(E$45:E52)","v":0}]
[null,"9期終了時",{"$f":"SUM('単位修得状況確認表（共通教育科目，外国人留学生）'!X$18:X$21)","v":0},{"$f":"IF(SUM($C256:$C$263)=0,\"\",SUM(C$45:C53))","v":""},{"$f":"SUM('単位修得状況確認表（共通教育科目，外国人留学生）'!X$22:X$23)","v":0},{"$f":"IF(SUM($C256:$C$263)=0,\"\",SUM(E$45:E53))","v":""}]
[null,"10期終了時",{"$f":"SUM('単位修得状況確認表（共通教育科目，外国人留学生）'!Z$18:Z$21)","v":0},{"$f":"IF(SUM($C257:$C$263)=0,\"\",SUM(C$45:C54))","v":""},{"$f":"SUM('単位修得状況確認表（共通教育科目，外国人留学生）'!Z$22:Z$23)","v":0},{"$f":"IF(SUM($C257:$C$263)=0,\"\",SUM(E$45:E54))","v":""}]
[null,"11期終了時",{"$f":"SUM('単位修得状況確認表（共通教育科目，外国人留学生）'!AB$18:AB$21)","v":0},{"$f":"IF(SUM($C258:$C$263)=0,\"\",SUM(C$45:C55))","v":""},{"$f":"SUM('単位修得状況確認表（共通教育科目，外国人留学生）'!AB$22:AB$23)","v":0},{"$f":"IF(SUM($C258:$C$263)=0,\"\",SUM(E$45:E55))","v":""}]
[null,"12期終了時",{"$f":"SUM('単位修得状況確認表（共通教育科目，外国人留学生）'!AD$18:AD$21)","v":0},{"$f":"IF(SUM($C259:$C$263)=0,\"\",SUM(C$45:C56))","v":""},{"$f":"SUM('単位修得状況確認表（共通教育科目，外国人留学生）'!AD$22:AD$23)","v":0},{"$f":"IF(SUM($C259:$C$263)=0,\"\",SUM(E$45:E56))","v":""}]
[null,"13期終了時",{"$f":"SUM('単位修得状況確認表（共通教育科目，外国人留学生）'!AF$18:AF$21)","v":0},{"$f":"IF(SUM($C260:$C$263)=0,\"\",SUM(C$45:C57))","v":""},{"$f":"SUM('単位修得状況確認表（共通教育科目，外国人留学生）'!AF$22:AF$23)","v":0},{"$f":"IF(SUM($C260:$C$263)=0,\"\",SUM(E$45:E57))","v":""}]
[null,"14期終了時",{"$f":"SUM('単位修得状況確認表（共通教育科目，外国人留学生）'!AH$18:AH$21)","v":0},{"$f":"IF(SUM($C261:$C$263)=0,\"\",SUM(C$45:C58))","v":""},{"$f":"SUM('単位修得状況確認表（共通教育科目，外国人留学生）'!AH$22:AH$23)","v":0},{"$f":"IF(SUM($C261:$C$263)=0,\"\",SUM(E$45:E58))","v":""}]
[null,"15期終了時",{"$f":"SUM('単位修得状況確認表（共通教育科目，外国人留学生）'!AJ$18:AJ$21)","v":0},{"$f":"IF(SUM($C262:$C$263)=0,\"\",SUM(C$45:C59))","v":""},{"$f":"SUM('単位修得状況確認表（共通教育科目，外国人留学生）'!AJ$22:AJ$23)","v":0},{"$f":"IF(SUM($C262:$C$263)=0,\"\",SUM(E$45:E59))","v":""}]
[null,"16期終了時",{"$f":"SUM('単位修得状況確認表（共通教育科目，外国人留学生）'!AL$18:AL$21)","v":0},{"$f":"IF(SUM($C263:$C$263)=0,\"\",SUM(C$45:C60))","v":""},{"$f":"SUM('単位修得状況確認表（共通教育科目，外国人留学生）'!AL$22:AL$23)","v":0},{"$f":"IF(SUM($C263:$C$263)=0,\"\",SUM(E$45:E60))","v":""}]
[]
[]
[]
[]
[]
[]
[]
[]
[]
[]
[]
[]
[]
[]
[]
[]
[]
[]
[]
[null,"専門教育科目（基礎教育科目）"]
[]
[null,null,"必修科目"]
[null,null,"取得単位数","累積取得単位数"]
[null,"1期終了時",{"$f":"'単位修得状況確認表（専門教育科目）'!G$13","v":0},{"$f":"SUM(C$84:C84)","v":0}]
[null,"2期終了時",{"$f":"'単位修得状況確認表（専門教育科目）'!I$13","v":0},{"$f":"SUM(C$84:C85)","v":0}]
[null,"3期終了時",{"$f":"'単位修得状況確認表（専門教育科目）'!K$13","v":0},{"$f":"SUM(C$84:C86)","v":0}]
[null,"4期終了時",{"$f":"'単位修得状況確認表（専門教育科目）'!M$13","v":0},{"$f":"SUM(C$84:C87)","v":0}]
[null,"5期終了時",{"$f":"'単位修得状況確認表（専門教育科目）'!O$13","v":0},{"$f":"SUM(C$84:C88)","v":0}]
[null,"6期終了時",{"$f":"'単位修得状況確認表（専門教育科目）'!Q$13","v":0},{"$f":"SUM(C$84:C89)","v":0}]
[null,"7期終了時",{"$f":"'単位修得状況確認表（専門教育科目）'!S$13","v":0},{"$f":"SUM(C$84:C90)","v":0}]
[null,"8期終了時",{"$f":"'単位修得状況確認表（専門教育科目）'!U$13","v":0},{"$f":"SUM(C$84:C91)","v":0}]
[null,"9期終了時",{"$f":"'単位修得状況確認表（専門教育科目）'!W$13","v":0},{"$f":"IF(SUM($C256:$C$263)=0,\"\",SUM(C$84:C92))","v":""}]
[null,"10期終了時",{"$f":"'単位修得状況確認表（専門教育科目）'!Y$13","v":0},{"$f":"IF(SUM($C257:$C$263)=0,\"\",SUM(C$84:C93))","v":""}]
[null,"11期終了時",{"$f":"'単位修得状況確認表（専門教育科目）'!AA$13","v":0},{"$f":"IF(SUM($C258:$C$263)=0,\"\",SUM(C$84:C94))","v":""}]
[null,"12期終了時",{"$f":"'単位修得状況確認表（専門教育科目）'!AC$13","v":0},{"$f":"IF(SUM($C259:$C$263)=0,\"\",SUM(C$84:C95))","v":""}]
[null,"13期終了時",{"$f":"'単位修得状況確認表（専門教育科目）'!AE$13","v":0},{"$f":"IF(SUM($C260:$C$263)=0,\"\",SUM(C$84:C96))","v":""}]
[null,"14期終了時",{"$f":"'単位修得状況確認表（専門教育科目）'!AG$13","v":0},{"$f":"IF(SUM($C261:$C$263)=0,\"\",SUM(C$84:C97))","v":""}]
[null,"15期終了時",{"$f":"'単位修得状況確認表（専門教育科目）'!AI$13","v":0},{"$f":"IF(SUM($C262:$C$263)=0,\"\",SUM(C$84:C98))","v":""}]
[null,"16期終了時",{"$f":"'単位修得状況確認表（専門教育科目）'!AK$13","v":0},{"$f":"IF(SUM($C263:$C$263)=0,\"\",SUM(C$84:C99))","v":""}]
[]
[]
[]
[]
[]
[]
[]
[null,"専門教育科目（必修科目）"]
[]
[null,null,"取得単位数","累積取得単位数"]
[null,"1期終了時",{"$f":"'単位修得状況確認表（専門教育科目）'!G$46","v":0},{"$f":"SUM(C$110:C110)","v":0}]
[null,"2期終了時",{"$f":"'単位修得状況確認表（専門教育科目）'!I$46","v":0},{"$f":"SUM(C$110:C111)","v":0}]
[null,"3期終了時",{"$f":"'単位修得状況確認表（専門教育科目）'!K$46","v":0},{"$f":"SUM(C$110:C112)","v":0}]
[null,"4期終了時",{"$f":"'単位修得状況確認表（専門教育科目）'!M$46","v":0},{"$f":"SUM(C$110:C113)","v":0}]
[null,"5期終了時",{"$f":"'単位修得状況確認表（専門教育科目）'!O$46","v":0},{"$f":"SUM(C$110:C114)","v":0}]
[null,"6期終了時",{"$f":"'単位修得状況確認表（専門教育科目）'!Q$46","v":0},{"$f":"SUM(C$110:C115)","v":0}]
[null,"7期終了時",{"$f":"'単位修得状況確認表（専門教育科目）'!S$46","v":0},{"$f":"SUM(C$110:C116)","v":0}]
[null,"8期終了時",{"$f":"'単位修得状況確認表（専門教育科目）'!U$46","v":0},{"$f":"SUM(C$110:C117)","v":0}]
[null,"9期終了時",{"$f":"'単位修得状況確認表（専門教育科目）'!W$46","v":0},{"$f":"IF(SUM($C256:$C$263)=0,\"\",SUM(C$110:C118))","v":""}]
[null,"10期終了時",{"$f":"'単位修得状況確認表（専門教育科目）'!Y$46","v":0},{"$f":"IF(SUM($C257:$C$263)=0,\"\",SUM(C$110:C119))","v":""}]
[null,"11期終了時",{"$f":"'単位修得状況確認表（専門教育科目）'!AA$46","v":0},{"$f":"IF(SUM($C258:$C$263)=0,\"\",SUM(C$110:C120))","v":""}]
[null,"12期終了時",{"$f":"'単位修得状況確認表（専門教育科目）'!AC$46","v":0},{"$f":"IF(SUM($C259:$C$263)=0,\"\",SUM(C$110:C121))","v":""}]
[null,"13期終了時",{"$f":"'単位修得状況確認表（専門教育科目）'!AE$46","v":0},{"$f":"IF(SUM($C260:$C$263)=0,\"\",SUM(C$110:C122))","v":""}]
[null,"14期終了時",{"$f":"'単位修得状況確認表（専門教育科目）'!AG$46","v":0},{"$f":"IF(SUM($C261:$C$263)=0,\"\",SUM(C$110:C123))","v":""}]
[null,"15期終了時",{"$f":"'単位修得状況確認表（専門教育科目）'!AI$46","v":0},{"$f":"IF(SUM($C262:$C$263)=0,\"\",SUM(C$110:C124))","v":""}]
[null,"16期終了時",{"$f":"'単位修得状況確認表（専門教育科目）'!AK$46","v":0},{"$f":"IF(SUM($C263:$C$263)=0,\"\",SUM(C$110:C125))","v":""}]
[]
[]
[]
[]
[]
[]
[]
[]
[]
[]
[]
[]
[]
[]
[null,"専門教育科目（選択科目A群）"]
[]
[null,null,"取得単位数","累積取得単位数"]
[null,"1期終了時",{"$f":"'単位修得状況確認表（専門教育科目）'!G$51","v":0},{"$f":"SUM(C$143:C143)","v":0}]
[null,"2期終了時",{"$f":"'単位修得状況確認表（専門教育科目）'!I$51","v":0},{"$f":"SUM(C$143:C144)","v":0}]
[null,"3期終了時",{"$f":"'単位修得状況確認表（専門教育科目）'!K$51","v":0},{"$f":"SUM(C$143:C145)","v":0}]
[null,"4期終了時",{"$f":"'単位修得状況確認表（専門教育科目）'!M$51","v":0},{"$f":"SUM(C$143:C146)","v":0}]
[null,"5期終了時",{"$f":"'単位修得状況確認表（専門教育科目）'!O$51","v":0},{"$f":"SUM(C$143:C147)","v":0}]
[null,"6期終了時",{"$f":"'単位修得状況確認表（専門教育科目）'!Q$51","v":0},{"$f":"SUM(C$143:C148)","v":0}]
[null,"7期終了時",{"$f":"'単位修得状況確認表（専門教育科目）'!S$51","v":0},{"$f":"SUM(C$143:C149)","v":0}]
[null,"8期終了時",{"$f":"'単位修得状況確認表（専門教育科目）'!U$51","v":0},{"$f":"SUM(C$143:C150)","v":0}]
[null,"9期終了時",{"$f":"'単位修得状況確認表（専門教育科目）'!W$51","v":0},{"$f":"IF(SUM($C256:$C$263)=0,\"\",SUM(C$143:C151))","v":""}]
[null,"10期終了時",{"$f":"'単位修得状況確認表（専門教育科目）'!Y$51","v":0},{"$f":"IF(SUM($C257:$C$263)=0,\"\",SUM(C$143:C152))","v":""}]
[null,"11期終了時",{"$f":"'単位修得状況確認表（専門教育科目）'!AA$51","v":0},{"$f":"IF(SUM($C258:$C$263)=0,\"\",SUM(C$143:C153))","v":""}]
[null,"12期終了時",{"$f":"'単位修得状況確認表（専門教育科目）'!AC$51","v":0},{"$f":"IF(SUM($C259:$C$263)=0,\"\",SUM(C$143:C154))","v":""}]
[null,"13期終了時",{"$f":"'単位修得状況確認表（専門教育科目）'!AE$51","v":0},{"$f":"IF(SUM($C260:$C$263)=0,\"\",SUM(C$143:C155))","v":""}]
[null,"14期終了時",{"$f":"'単位修得状況確認表（専門教育科目）'!AG$51","v":0},{"$f":"IF(SUM($C261:$C$263)=0,\"\",SUM(C$143:C156))","v":""}]
[null,"15期終了時",{"$f":"'単位修得状況確認表（専門教育科目）'!AI$51","v":0},{"$f":"IF(SUM($C262:$C$263)=0,\"\",SUM(C$143:C157))","v":""}]
[null,"16期終了時",{"$f":"'単位修得状況確認表（専門教育科目）'!AK$51","v":0},{"$f":"IF(SUM($C263:$C$263)=0,\"\",SUM(C$143:C158))","v":""}]
[]
[]
[]
[]
[]
[]
[]
[null,"専門教育科目（選択科目B群）"]
[]
[null,null,"取得単位数","累積取得単位数"]
[null,"1期終了時",{"$f":"'単位修得状況確認表（専門教育科目）'!G$56","v":0},{"$f":"SUM(C$169:C169)","v":0}]
[null,"2期終了時",{"$f":"'単位修得状況確認表（専門教育科目）'!I$56","v":0},{"$f":"SUM(C$169:C170)","v":0}]
[null,"3期終了時",{"$f":"'単位修得状況確認表（専門教育科目）'!K$56","v":0},{"$f":"SUM(C$169:C171)","v":0}]
[null,"4期終了時",{"$f":"'単位修得状況確認表（専門教育科目）'!M$56","v":0},{"$f":"SUM(C$169:C172)","v":0}]
[null,"5期終了時",{"$f":"'単位修得状況確認表（専門教育科目）'!O$56","v":0},{"$f":"SUM(C$169:C173)","v":0}]
[null,"6期終了時",{"$f":"'単位修得状況確認表（専門教育科目）'!Q$56","v":0},{"$f":"SUM(C$169:C174)","v":0}]
[null,"7期終了時",{"$f":"'単位修得状況確認表（専門教育科目）'!S$56","v":0},{"$f":"SUM(C$169:C175)","v":0}]
[null,"8期終了時",{"$f":"'単位修得状況確認表（専門教育科目）'!U$56","v":0},{"$f":"SUM(C$169:C176)","v":0}]
[null,"9期終了時",{"$f":"'単位修得状況確認表（専門教育科目）'!W$56","v":0},{"$f":"IF(SUM($C256:$C$263)=0,\"\",SUM(C$169:C177))","v":""}]
[null,"10期終了時",{"$f":"'単位修得状況確認表（専門教育科目）'!Y$56","v":0},{"$f":"IF(SUM($C257:$C$263)=0,\"\",SUM(C$169:C178))","v":""}]
[null,"11期終了時",{"$f":"'単位修得状況確認表（専門教育科目）'!AA$56","v":0},{"$f":"IF(SUM($C258:$C$263)=0,\"\",SUM(C$169:C179))","v":""}]
[null,"12期終了時",{"$f":"'単位修得状況確認表（専門教育科目）'!AC$56","v":0},{"$f":"IF(SUM($C259:$C$263)=0,\"\",SUM(C$169:C180))","v":""}]
[null,"13期終了時",{"$f":"'単位修得状況確認表（専門教育科目）'!AE$56","v":0},{"$f":"IF(SUM($C260:$C$263)=0,\"\",SUM(C$169:C181))","v":""}]
[null,"14期終了時",{"$f":"'単位修得状況確認表（専門教育科目）'!AG$56","v":0},{"$f":"IF(SUM($C261:$C$263)=0,\"\",SUM(C$169:C182))","v":""}]
[null,"15期終了時",{"$f":"'単位修得状況確認表（専門教育科目）'!AI$56","v":0},{"$f":"IF(SUM($C262:$C$263)=0,\"\",SUM(C$169:C183))","v":""}]
[null,"16期終了時",{"$f":"'単位修得状況確認表（専門教育科目）'!AK$56","v":0},{"$f":"IF(SUM($C263:$C$263)=0,\"\",SUM(C$169:C184))","v":""}]
[]
[]
[]
[]
[]
[]
[]
[]
[null,"専門教育科目（選択科目C群）"]
[]
[null,null,"取得単位数","累積取得単位数"]
[null,"1期終了時",{"$f":"'単位修得状況確認表（専門教育科目）'!G$70","v":0},{"$f":"SUM(C$196:C196)","v":0}]
[null,"2期終了時",{"$f":"'単位修得状況確認表（専門教育科目）'!I$70","v":0},{"$f":"SUM(C$196:C197)","v":0}]
[null,"3期終了時",{"$f":"'単位修得状況確認表（専門教育科目）'!K$70","v":0},{"$f":"SUM(C$196:C198)","v":0}]
[null,"4期終了時",{"$f":"'単位修得状況確認表（専門教育科目）'!M$70","v":0},{"$f":"SUM(C$196:C199)","v":0}]
[null,"5期終了時",{"$f":"'単位修得状況確認表（専門教育科目）'!O$70","v":0},{"$f":"SUM(C$196:C200)","v":0}]
[null,"6期終了時",{"$f":"'単位修得状況確認表（専門教育科目）'!Q$70","v":0},{"$f":"SUM(C$196:C201)","v":0}]
[null,"7期終了時",{"$f":"'単位修得状況確認表（専門教育科目）'!S$70","v":0},{"$f":"SUM(C$196:C202)","v":0}]
[null,"8期終了時",{"$f":"'単位修得状況確認表（専門教育科目）'!U$70","v":0},{"$f":"SUM(C$196:C203)","v":0}]
[null,"9期終了時",{"$f":"'単位修得状況確認表（専門教育科目）'!W$70","v":0},{"$f":"IF(SUM($C256:$C$263)=0,\"\",SUM(C$196:C204))","v":""}]
[null,"10期終了時",{"$f":"'単位修得状況確認表（専門教育科目）'!Y$70","v":0},{"$f":"IF(SUM($C257:$C$263)=0,\"\",SUM(C$196:C205))","v":""}]
[null,"11期終了時",{"$f":"'単位修得状況確認表（専門教育科目）'!AA$70","v":0},{"$f":"IF(SUM($C258:$C$263)=0,\"\",SUM(C$196:C206))","v":""}]
[null,"12期終了時",{"$f":"'単位修得状況確認表（専門教育科目）'!AC$70","v":0},{"$f":"IF(SUM($C259:$C$263)=0,\"\",SUM(C$196:C207))","v":""}]
[null,"13期終了時",{"$f":"'単位修得状況確認表（専門教育科目）'!AE$70","v":0},{"$f":"IF(SUM($C260:$C$263)=0,\"\",SUM(C$196:C208))","v":""}]
[null,"14期終了時",{"$f":"'単位修得状況確認表（専門教育科目）'!AG$70","v":0},{"$f":"IF(SUM($C261:$C$263)=0,\"\",SUM(C$196:C209))","v":""}]
[null,"15期終了時",{"$f":"'単位修得状況確認表（専門教育科目）'!AI$70","v":0},{"$f":"IF(SUM($C262:$C$263)=0,\"\",SUM(C$196:C210))","v":""}]
[null,"16期終了時",{"$f":"'単位修得状況確認表（専門教育科目）'!AK$70","v":0},{"$f":"IF(SUM($C263:$C$263)=0,\"\",SUM(C$196:C211))","v":""}]
[]
[]
[]
[]
[]
[]
[]
[null,"専門教育科目（選択科目D群・E群）"]
[]
[null,null,"取得単位数","累積取得単位数"]
[null,"1期終了時",{"$f":"'単位修得状況確認表（専門教育科目）'!G$83","v":0},{"$f":"SUM(C$222:C222)","v":0}]
[null,"2期終了時",{"$f":"'単位修得状況確認表（専門教育科目）'!I$83","v":0},{"$f":"SUM(C$222:C223)","v":0}]
[null,"3期終了時",{"$f":"'単位修得状況確認表（専門教育科目）'!K$83","v":0},{"$f":"SUM(C$222:C224)","v":0}]
[null,"4期終了時",{"$f":"'単位修得状況確認表（専門教育科目）'!M$83","v":0},{"$f":"SUM(C$222:C225)","v":0}]
[null,"5期終了時",{"$f":"'単位修得状況確認表（専門教育科目）'!O$83","v":0},{"$f":"SUM(C$222:C226)","v":0}]
[null,"6期終了時",{"$f":"'単位修得状況確認表（専門教育科目）'!Q$83","v":0},{"$f":"SUM(C$222:C227)","v":0}]
[null,"7期終了時",{"$f":"'単位修得状況確認表（専門教育科目）'!S$83","v":0},{"$f":"SUM(C$222:C228)","v":0}]
[null,"8期終了時",{"$f":"'単位修得状況確認表（専門教育科目）'!U$83","v":0},{"$f":"SUM(C$222:C229)","v":0}]
[null,"9期終了時",{"$f":"'単位修得状況確認表（専門教育科目）'!W$83","v":0},{"$f":"IF(SUM($C256:$C$263)=0,\"\",SUM(C$222:C230))","v":""}]
[null,"10期終了時",{"$f":"'単位修得状況確認表（専門教育科目）'!Y$83","v":0},{"$f":"IF(SUM($C257:$C$263)=0,\"\",SUM(C$222:C231))","v":""}]
[null,"11期終了時",{"$f":"'単位修得状況確認表（専門教育科目）'!AA$83","v":0},{"$f":"IF(SUM($C258:$C$263)=0,\"\",SUM(C$222:C232))","v":""}]
[null,"12期終了時",{"$f":"'単位修得状況確認表（専門教育科目）'!AC$83","v":0},{"$f":"IF(SUM($C259:$C$263)=0,\"\",SUM(C$222:C233))","v":""}]
[null,"13期終了時",{"$f":"'単位修得状況確認表（専門教育科目）'!AE$83","v":0},{"$f":"IF(SUM($C260:$C$263)=0,\"\",SUM(C$222:C234))","v":""}]
[null,"14期終了時",{"$f":"'単位修得状況確認表（専門教育科目）'!AG$83","v":0},{"$f":"IF(SUM($C261:$C$263)=0,\"\",SUM(C$222:C235))","v":""}]
[null,"15期終了時",{"$f":"'単位修得状況確認表（専門教育科目）'!AI$83","v":0},{"$f":"IF(SUM($C262:$C$263)=0,\"\",SUM(C$222:C236))","v":""}]
[null,"16期終了時",{"$f":"'単位修得状況確認表（専門教育科目）'!AK$83","v":0},{"$f":"IF(SUM($C263:$C$263)=0,\"\",SUM(C$222:C237))","v":""}]
[]
[]
[]
[]
[]
[]
[]
[null,"累積単位数"]
[]
[null,null,"取得単位数","累積取得単位数"]
[null,"1期終了時",{"$f":"SUM(C6,E6,G6,C45,E45,C84,C110,C143,C169,C196,C222)","v":0},{"$f":"SUM(C$248:C248)","v":0}]
[null,"2期終了時",0,{"$f":"SUM(C$248:C249)","v":0}]
[null,"3期終了時",0,{"$f":"SUM(C$248:C250)","v":0}]
[null,"4期終了時",0,{"$f":"SUM(C$248:C251)","v":0}]
[null,"5期終了時",0,{"$f":"SUM(C$248:C252)","v":0}]
[null,"6期終了時",0,{"$f":"SUM(C$248:C253)","v":0}]
[null,"7期終了時",0,{"$f":"SUM(C$248:C254)","v":0}]
[null,"8期終了時",0,{"$f":"SUM(C$248:C255)","v":0}]
[null,"9期終了時",{"$f":"SUM(C14,E14,G14,C53,E53,C92,C118,C151,C177,C204,C230)","v":0},{"$f":"IF(SUM($C256:$C$263)=0,\"\",SUM(C$248:C256))","v":""}]
[null,"10期終了時",0,{"$f":"IF(SUM($C257:$C$263)=0,\"\",SUM(C$248:C257))","v":""}]
[null,"11期終了時",0,{"$f":"IF(SUM($C258:$C$263)=0,\"\",SUM(C$248:C258))","v":""}]
[null,"12期終了時",0,{"$f":"IF(SUM($C259:$C$263)=0,\"\",SUM(C$248:C259))","v":""}]
[null,"13期終了時",0,{"$f":"IF(SUM($C260:$C$263)=0,\"\",SUM(C$248:C260))","v":""}]
[null,"14期終了時",0,{"$f":"IF(SUM($C261:$C$263)=0,\"\",SUM(C$248:C261))","v":""}]
[null,"15期終了時",0,{"$f":"IF(SUM($C262:$C$263)=0,\"\",SUM(C$248:C262))","v":""}]
[null,"16期終了時",0,{"$f":"IF(SUM($C263:$C$263)=0,\"\",SUM(C$248:C263))","v":""}]
[]
[]
[]
[]
[]
[]
[]
[]
[]
[]
[]
[]
[]
[]
[]
[]
[null,"GPA"]
[]
[null,null,"累積GP","累積GPA","GPA累積単位数","累積P","累積F"]
[null,"1期終了時",{"$f":"'単位修得状況確認表（共通教育科目，外国人留学生）'!I$25+'単位修得状況確認表（専門教育科目）'!H$85","v":0},{"$f":"IF(E283=0,\"\",C283/E283)","v":""},{"$f":"D248-F283+G283","v":0},{"$f":"'単位修得状況確認表（共通教育科目，外国人留学生）'!H$28+'単位修得状況確認表（専門教育科目）'!G$89","v":0},{"$f":"'単位修得状況確認表（共通教育科目，外国人留学生）'!H$29+'単位修得状況確認表（専門教育科目）'!G$90-'単位修得状況確認表（共通教育科目，外国人留学生）'!H$30-'単位修得状況確認表（専門教育科目）'!G$91","v":0}]
[null,"2期終了時",{"$f":"C283+'単位修得状況確認表（共通教育科目，外国人留学生）'!K$25+'単位修得状況確認表（専門教育科目）'!J$85","v":0},{"$f":"IF(E284=0,\"\",C284/E284)","v":""},0,{"$f":"F283+'単位修得状況確認表（共通教育科目，外国人留学生）'!J$28+'単位修得状況確認表（専門教育科目）'!I$89","v":0},{"$f":"G283+'単位修得状況確認表（共通教育科目，外国人留学生）'!J$29+'単位修得状況確認表（専門教育科目）'!I$90-'単位修得状況確認表（共通教育科目，外国人留学生）'!J$30-'単位修得状況確認表（専門教育科目）'!I$91","v":0}]
[null,"3期終了時",{"$f":"C284+'単位修得状況確認表（共通教育科目，外国人留学生）'!M$25+'単位修得状況確認表（専門教育科目）'!L$85","v":0},"",0,{"$f":"F284+'単位修得状況確認表（共通教育科目，外国人留学生）'!L$28+'単位修得状況確認表（専門教育科目）'!K$89","v":0},{"$f":"G284+'単位修得状況確認表（共通教育科目，外国人留学生）'!L$29+'単位修得状況確認表（専門教育科目）'!K$90-'単位修得状況確認表（共通教育科目，外国人留学生）'!L$30-'単位修得状況確認表（専門教育科目）'!K$91","v":0}]
[null,"4期終了時",{"$f":"C285+'単位修得状況確認表（共通教育科目，外国人留学生）'!O$25+'単位修得状況確認表（専門教育科目）'!N$85","v":0},"",0,{"$f":"F285+'単位修得状況確認表（共通教育科目，外国人留学生）'!N$28+'単位修得状況確認表（専門教育科目）'!M$89","v":0},{"$f":"G285+'単位修得状況確認表（共通教育科目，外国人留学生）'!N$29+'単位修得状況確認表（専門教育科目）'!M$90-'単位修得状況確認表（共通教育科目，外国人留学生）'!N$30-'単位修得状況確認表（専門教育科目）'!M$91","v":0}]
[null,"5期終了時",{"$f":"C286+'単位修得状況確認表（共通教育科目，外国人留学生）'!Q$25+'単位修得状況確認表（専門教育科目）'!P$85","v":0},"",0,{"$f":"F286+'単位修得状況確認表（共通教育科目，外国人留学生）'!P$28+'単位修得状況確認表（専門教育科目）'!O$89","v":0},{"$f":"G286+'単位修得状況確認表（共通教育科目，外国人留学生）'!P$29+'単位修得状況確認表（専門教育科目）'!O$90-'単位修得状況確認表（共通教育科目，外国人留学生）'!P$30-'単位修得状況確認表（専門教育科目）'!O$91","v":0}]
[null,"6期終了時",{"$f":"C287+'単位修得状況確認表（共通教育科目，外国人留学生）'!S$25+'単位修得状況確認表（専門教育科目）'!R$85","v":0},"",0,{"$f":"F287+'単位修得状況確認表（共通教育科目，外国人留学生）'!R$28+'単位修得状況確認表（専門教育科目）'!Q$89","v":0},{"$f":"G287+'単位修得状況確認表（共通教育科目，外国人留学生）'!R$29+'単位修得状況確認表（専門教育科目）'!Q$90-'単位修得状況確認表（共通教育科目，外国人留学生）'!R$30-'単位修得状況確認表（専門教育科目）'!Q$91","v":0}]
[null,"7期終了時",{"$f":"C288+'単位修得状況確認表（共通教育科目，外国人留学生）'!U$25+'単位修得状況確認表（専門教育科目）'!T$85","v":0},"",0,{"$f":"F288+'単位修得状況確認表（共通教育科目，外国人留学生）'!T$28+'単位修得状況確認表（専門教育科目）'!S$89","v":0},{"$f":"G288+'単位修得状況確認表（共通教育科目，外国人留学生）'!T$29+'単位修得状況確認表（専門教育科目）'!S$90-'単位修得状況確認表（共通教育科目，外国人留学生）'!T$30-'単位修得状況確認表（専門教育科目）'!S$91","v":0}]
[null,"8期終了時",{"$f":"C289+'単位修得状況確認表（共通教育科目，外国人留学生）'!W$25+'単位修得状況確認表（専門教育科目）'!V$85","v":0},"",0,{"$f":"F289+'単位修得状況確認表（共通教育科目，外国人留学生）'!V$28+'単位修得状況確認表（専門教育科目）'!U$89","v":0},{"$f":"G289+'単位修得状況確認表（共通教育科目，外国人留学生）'!V$29+'単位修得状況確認表（専門教育科目）'!U$90-'単位修得状況確認表（共通教育科目，外国人留学生）'!V$30-'単位修得状況確認表（専門教育科目）'!U$91","v":0}]
[null,"9期終了時",{"$f":"C290+'単位修得状況確認表（共通教育科目，外国人留学生）'!Y$25+'単位修得状況確認表（専門教育科目）'!X$85","v":0},{"$f":"IF(OR(E291=0,E291=\"\"),\"\",C291/E291)","v":""},{"$f":"IF(D256=\"\",\"\",D256-F291+G291)","v":""},{"$f":"F290+'単位修得状況確認表（共通教育科目，外国人留学生）'!X$28+'単位修得状況確認表（専門教育科目）'!W$89","v":0},{"$f":"G290+'単位修得状況確認表（共通教育科目，外国人留学生）'!X$29+'単位修得状況確認表（専門教育科目）'!W$90-'単位修得状況確認表（共通教育科目，外国人留学生）'!X$30-'単位修得状況確認表（専門教育科目）'!W$91","v":0}]
[null,"10期終了時",{"$f":"C291+'単位修得状況確認表（共通教育科目，外国人留学生）'!AA$25+'単位修得状況確認表（専門教育科目）'!Z$85","v":0},{"$f":"IF(OR(E292=0,E292=\"\"),\"\",C292/E292)","v":""},{"$f":"IF(D257=\"\",\"\",D257-F292+G292)","v":""},{"$f":"F291+'単位修得状況確認表（共通教育科目，外国人留学生）'!Z$28+'単位修得状況確認表（専門教育科目）'!Y$89","v":0},{"$f":"G291+'単位修得状況確認表（共通教育科目，外国人留学生）'!Z$29+'単位修得状況確認表（専門教育科目）'!Y$90-'単位修得状況確認表（共通教育科目，外国人留学生）'!Z$30-'単位修得状況確認表（専門教育科目）'!Y$91","v":0}]
[null,"11期終了時",{"$f":"C292+'単位修得状況確認表（共通教育科目，外国人留学生）'!AC$25+'単位修得状況確認表（専門教育科目）'!AB$85","v":0},"","",{"$f":"F292+'単位修得状況確認表（共通教育科目，外国人留学生）'!AB$28+'単位修得状況確認表（専門教育科目）'!AA$89","v":0},{"$f":"G292+'単位修得状況確認表（共通教育科目，外国人留学生）'!AB$29+'単位修得状況確認表（専門教育科目）'!AA$90-'単位修得状況確認表（共通教育科目，外国人留学生）'!AB$30-'単位修得状況確認表（専門教育科目）'!AA$91","v":0}]
[null,"12期終了時",{"$f":"C293+'単位修得状況確認表（共通教育科目，外国人留学生）'!AE$25+'単位修得状況確認表（専門教育科目）'!AD$85","v":0},"","",{"$f":"F293+'単位修得状況確認表（共通教育科目，外国人留学生）'!AD$28+'単位修得状況確認表（専門教育科目）'!AC$89","v":0},{"$f":"G293+'単位修得状況確認表（共通教育科目，外国人留学生）'!AD$29+'単位修得状況確認表（専門教育科目）'!AC$90-'単位修得状況確認表（共通教育科目，外国人留学生）'!AD$30-'単位修得状況確認表（専門教育科目）'!AC$91","v":0}]
[null,"13期終了時",{"$f":"C294+'単位修得状況確認表（共通教育科目，外国人留学生）'!AG$25+'単位修得状況確認表（専門教育科目）'!AF$85","v":0},"","",{"$f":"F294+'単位修得状況確認表（共通教育科目，外国人留学生）'!AF$28+'単位修得状況確認表（専門教育科目）'!AE$89","v":0},{"$f":"G294+'単位修得状況確認表（共通教育科目，外国人留学生）'!AF$29+'単位修得状況確認表（専門教育科目）'!AE$90-'単位修得状況確認表（共通教育科目，外国人留学生）'!AF$30-'単位修得状況確認表（専門教育科目）'!AE$91","v":0}]
[null,"14期終了時",{"$f":"C295+'単位修得状況確認表（共通教育科目，外国人留学生）'!AI$25+'単位修得状況確認表（専門教育科目）'!AH$85","v":0},"","",{"$f":"F295+'単位修得状況確認表（共通教育科目，外国人留学生）'!AH$28+'単位修得状況確認表（専門教育科目）'!AG$89","v":0},{"$f":"G295+'単位修得状況確認表（共通教育科目，外国人留学生）'!AH$29+'単位修得状況確認表（専門教育科目）'!AG$90-'単位修得状況確認表（共通教育科目，外国人留学生）'!AH$30-'単位修得状況確認表（専門教育科目）'!AG$91","v":0}]
[null,"15期終了時",{"$f":"C296+'単位修得状況確認表（共通教育科目，外国人留学生）'!AK$25+'単位修得状況確認表（専門教育科目）'!AJ$85","v":0},"","",{"$f":"F296+'単位修得状況確認表（共通教育科目，外国人留学生）'!AJ$28+'単位修得状況確認表（専門教育科目）'!AI$89","v":0},{"$f":"G296+'単位修得状況確認表（共通教育科目，外国人留学生）'!AJ$29+'単位修得状況確認表（専門教育科目）'!AI$90-'単位修得状況確認表（共通教育科目，外国人留学生）'!AJ$30-'単位修得状況確認表（専門教育科目）'!AI$91","v":0}]
[null,"16期終了時",{"$f":"C297+'単位修得状況確認表（共通教育科目，外国人留学生）'!AM$25+'単位修得状況確認表（専門教育科目）'!AL$85","v":0},"","",{"$f":"F297+'単位修得状況確認表（共通教育科目，外国人留学生）'!AL$28+'単位修得状況確認表（専門教育科目）'!AK$89","v":0},{"$f":"G297+'単位修得状況確認表（共通教育科目，外国人留学生）'!AL$29+'単位修得状況確認表（専門教育科目）'!AK$90-'単位修得状況確認表（共通教育科目，外国人留学生）'!AL$30-'単位修得状況確認表（専門教育科目）'!AK$91","v":0}]